Workbook

Sheet Home

Sheet STRCheck
C2: Soil Test Avaiability Check
C7: Do You Have A Soil Test Report?
I9: 1

Sheet SoilData
C2: Soil Test Report
K3: Nutrient Requirement
K4: FYM t/ha | L4: Vermi Compost t/ha | M4: N, t/ha | N4: P, t/ha | O4: K, t/ha | P4: Zn, ppm | Q4: B, ppm | R4: S, t/ha | S4: Lime
C5: Nutrient | E5: Input Value | F5: Unit | G5: Level | J5: Rec Dose Nutri | K5: 5 | L5: 3 | M5: 80 | N5: 40 | O5: 20 | P5: 5.25 | Q5: 1.575 | R5: 0 | S5: 400
C6: Nitrogen (N) | E6: 0 | F6: kg/ha | G6: =IF(E6<281,"LOW",IF(E6>560,"HIGH","MEDIUM")) -> LOW | I6: =IF(G6="LOW",1,IF(G6= "MEDIUM",2,3)) -> 1 | J6: Req Nutri | K6: =K5 -> 5 | L6: =L5 -> 3 | M6: =IF(I6=1,M5*1.25,IF(I6=2,M5,M5*0.75)) -> 100 | N6: =IF(I8=1,N5*1.25,IF(I8=2,N5,N5*0.75)) -> 50 | O6: =IF(I10=1,O5*1.25,IF(I10=2,O5,O5*0.75)) -> 25 | P6: =IF(I12=1,P5*1.25,IF(I12=2,P5,P5*0.75)) -> 6.5625 | Q6: =IF(I14=1,Q5*1.25,IF(I14=2,Q5,Q5*0.75)) -> 1.96875 | R6: =IF(I18=1,R5*1.25,IF(I18=2,R5,R5*0.75)) -> 0 | S6: =IF(FieldCrop!I13=1,IF(I18=1,S5*1,IF(I18=2,0,S5*0)),S5) -> 400
C8: Phosphorous (P) | E8: 0 | F8: kg/ha | G8: =IF(E8<34,"LOW",IF(E8>68,"HIGH","MEDIUM")) -> LOW | I8: =IF(G8="LOW",1,IF(G8= "MEDIUM",2,3)) -> 1
N9: Nitrogen (N) | O9: 282-560
C10: Potassium (K) | E10: 0 | F10: kg/ha | G10: =IF(E10<108,"LOW",IF(E10>280,"HIGH","MEDIUM")) -> LOW | I10: =IF(G10="LOW",1,IF(G10= "MEDIUM",2,3)) -> 1 | N10: Phosphorous (P) | O10: 34-68
N11: Potassium (K) | O11: 108-280
C12: Zink (Zn) | E12: 0 | F12: ppm | G12: =IF(E12<0.6,"LOW",IF(E12>1,"HIGH","MEDIUM")) -> LOW | I12: =IF(G12="LOW",1,IF(G12= "MEDIUM",2,3)) -> 1 | N12: Zink (Zn) | O12: 0.6-1
N13: Boron (B) | O13: 0.25-0.5
C14: Boron (B) | E14: 0 | F14: ppm | G14: =IF(E14<0.25,"LOW",IF(E14>0.5,"HIGH","MEDIUM")) -> LOW | I14: =IF(G14="LOW",1,IF(G14= "MEDIUM",2,3)) -> 1 | N14: pH | O14: 6.5-7.5
C16: Sulphur | E16: 0 | F16: kg/ha | G16: =IF(E16<10,"LOW",IF(E16>20,"HIGH","MEDIUM")) -> LOW | I16: =IF(G16="LOW",1,IF(G16= "MEDIUM",2,3)) -> 1
C18: pH | E18: 0 | F18: - | G18: =IF(E18<6.5,"ACIDIC",IF(E18>7.5,"ALKALINE","NORMAL")) -> ACIDIC | I18: =IF(G18="ACIDIC",1,IF(G18= "NORMAL",2,3)) -> 1

Sheet CropType
B2: Select Crop Type
D5: What type of crop you wish to grow?

Sheet FieldCrop
B2: Field Crop Inputs | L2: =LOOKUP(I9,K4:K21,L4:L19) -> Rice-Midland | M2: =LOOKUP(I9,K4:K19,M4:M19) -> 5 | N2: =LOOKUP(I9,K4:K19,N4:N19) -> 3 | O2: =LOOKUP(I9,K4:K19,O4:O19) -> 80 | P2: =LOOKUP(I9,K4:K19,P4:P19) -> 40 | Q2: =LOOKUP(I9,K4:K19,Q4:Q19) -> 20 | R2: =LOOKUP(I9,K4:K19,R4:R19) -> 5.25 | S2: =LOOKUP(I9,K4:K19,S4:S19) -> 1.575 | T2: =LOOKUP(I9,K4:K19,T4:T19) -> 0 | U2: =LOOKUP(I9,K4:K19,U4:U19) -> 0 | V2: =LOOKUP(I9,K4:K19,V4:V19) -> 50 | W2: =LOOKUP(I9,K4:K19,W4:W19) -> 25 | X2: =LOOKUP(I9,K4:K19,X4:X19) -> 25
C3: Field crop | L3: Crop | M3: FYM t/ha | N3: Vermi Compost t/ha | O3: N, t/ha | P3: P, t/ha | Q3: K, t/ha | R3: Zn, ppm | S3: B, ppm | T3: S, t/ha | U3: Before transplanting or at time of last ploughing | V3: At time of sowing/transplanting | W3: 25- 30 days after sowing | X3: 40-50 days days after sowing
K4: 1 | L4: None
C5: Area | F5: 120 | G5: Decimal | K5: 2 | L5: Arhar | M5: 3 | N5: 2 | O5: 25 | P5: 50 | Q5: 25 | R5: 5.25 | S5: 1.575 | T5: 0 | U5: 0 | V5: 100 | W5: 0 | X5: 0
K6: 3 | L6: Black gram | M6: 3 | N6: 2 | O6: 25 | P6: 50 | Q6: 25 | R6: 5.25 | S6: 1.575 | T6: 0 | U6: 0 | V6: 100 | W6: 0 | X6: 0
K7: 4 | L7: Chick pea | M7: 3 | N7: 2 | O7: 25 | P7: 50 | Q7: 25 | R7: 5.25 | S7: 1.575 | T7: 0 | U7: 0 | V7: 100 | W7: 0 | X7: 0
K8: 5 | L8: Cow pea | M8: 3 | N8: 2 | O8: 20 | P8: 40 | Q8: 20 | R8: 5.25 | S8: 1.575 | T8: 0 | U8: 50 | V8: 0 | W8: 50 | X8: 0
I9: 13 | K9: 6 | L9: Field pea | M9: 3 | N9: 2 | O9: 25 | P9: 50 | Q9: 25 | R9: 5.25 | S9: 1.575 | T9: 0 | U9: 50 | V9: 0 | W9: 50 | X9: 0
K10: 7 | L10: Green gram | M10: 3 | N10: 2 | O10: 20 | P10: 50 | Q10: 25 | R10: 5.25 | S10: 1.575 | T10: 0 | U10: 0 | V10: 100 | W10: 0 | X10: 0
K11: 8 | L11: Lentil | M11: 3 | N11: 2 | O11: 25 | P11: 50 | Q11: 25 | R11: 5.25 | S11: 1.575 | T11: 0 | U11: 0 | V11: 100 | W11: 0 | X11: 0
K12: 9 | L12: Maize | M12: 5 | N12: 3 | O12: 120 | P12: 60 | Q12: 40 | R12: 5.25 | S12: 1.575 | T12: 0 | U12: 0 | V12: 50 | W12: 50 | X12: 0
K13: 10 | L13: Millet | M13: 5 | N13: 3 | O13: 40 | P13: 30 | Q13: 20 | R13: 5.25 | S13: 1.575 | T13: 0 | U13: 0 | V13: 50 | W13: 50 | X13: 0
K14: 11 | L14: Rice bean | M14: 3 | N14: 3 | O14: 20 | P14: 40 | Q14: 20 | R14: 5.25 | S14: 1.575 | T14: 0 | U14: 0 | V14: 100 | W14: 0 | X14: 0
K15: 12 | L15: Rice-Lowland | M15: 5 | N15: 3 | O15: 120 | P15: 60 | Q15: 40 | R15: 5.25 | S15: 1.575 | T15: 0 | U15: 0 | V15: 50 | W15: 25 | X15: 25
K16: 13 | L16: Rice-Midland | M16: 5 | N16: 3 | O16: 80 | P16: 40 | Q16: 20 | R16: 5.25 | S16: 1.575 | T16: 0 | U16: 0 | V16: 50 | W16: 25 | X16: 25
K17: 14 | L17: Rice-Upland | M17: 5 | N17: 3 | O17: 40 | P17: 20 | Q17: 20 | R17: 5.25 | S17: 1.575 | T17: 0 | U17: 0 | V17: 50 | W17: 25 | X17: 25
K18: 15 | L18: Wheat-Irrigated | M18: 5 | N18: 3 | O18: 120 | P18: 60 | Q18: 40 | R18: 5.25 | S18: 1.575 | T18: 0 | U18: 0 | V18: 50 | W18: 25 | X18: 25
K19: 16 | L19: Wheat-unirrigated | M19: 5 | N19: 3 | O19: 60 | P19: 30 | Q19: 20 | R19: 5.25 | S19: 1.575 | T19: 0 | U19: 0 | V19: 50 | W19: 50 | X19: 0
K39: 37 | L39: Onion | O39: 80 | P39: 26.184 | Q39: 66.408 | R39: 5.25 | S39: 1.575
L42: Mango (10 x10 m) | O42: Planting | P42: 30 | Q42: 2 | R42: 1 | S42: 5 | T42: 100 | U42: 50 | V42: 100 | W42: 10 | X42: 10
O43: 1-3 year | P43: 30 | Q43: 1.5 | R43: 0 | S43: 5 | T43: 180 | U43: 60 | V43: 150 | W43: 20 | X43: 20
O44: 4 year | P44: 40 | Q44: 1.65 | R44: 0 | S44: 5 | T44: 270 | U44: 95 | V44: 200 | W44: 35 | X44: 35
O45: 5 year | P45: 50 | Q45: 1.8 | R45: 0 | S45: 5 | T45: 360 | U45: 130 | V45: 250 | W45: 50 | X45: 50
O46: 6 year | P46: 60 | Q46: 1.95 | R46: 0 | S46: 5 | T46: 450 | U46: 165 | V46: 300 | W46: 65 | X46: 65
O47: 7 year | P47: 70 | Q47: 2.1 | R47: 0 | S47: 5 | T47: 540 | U47: 200 | V47: 350 | W47: 80 | X47: 80
O48: 8 year | P48: 80 | Q48: 2.25 | R48: 0 | S48: 5 | T48: 630 | U48: 235 | V48: 400 | W48: 95 | X48: 95
O49: 9 year | P49: 90 | Q49: 2.4 | R49: 0 | S49: 5 | T49: 720 | U49: 270 | V49: 450 | W49: 110 | X49: 110
O50: 10 year | P50: 100 | Q50: 2.55 | R50: 0 | S50: 5 | T50: 810 | U50: 305 | V50: 500 | W50: 125 | X50: 125
O51: 11 year | P51: 110 | Q51: 2.7 | R51: 0 | S51: 5 | T51: 900 | U51: 340 | V51: 550 | W51: 140 | X51: 140
O52: 12 year | P52: 120 | Q52: 2.85 | R52: 0 | S52: 5 | T52: 990 | U52: 375 | V52: 600 | W52: 155 | X52: 155
O53: 13 year | P53: 130 | Q53: 3 | R53: 0 | S53: 5 | T53: 1080 | U53: 410 | V53: 650 | W53: 170 | X53: 170
O54: 14 year | P54: 140 | Q54: 3.15 | R54: 0 | S54: 5 | T54: 1170 | U54: 445 | V54: 700 | W54: 185 | X54: 185
O55: 15 year | P55: 150 | Q55: 3.3 | R55: 0 | S55: 5 | T55: 1260 | U55: 480 | V55: 750 | W55: 200 | X55: 200
O56: 16+ year | P56: 160 | Q56: 3.45 | R56: 0 | S56: 5 | T56: 1350 | U56: 515 | V56: 800 | W56: 215 | X56: 215
L57: Litchi (10 x10 m) | O57: Planting | P57: 30 | Q57: 2 | R57: 1 | S57: 5 | T57: 100 | U57: 50 | V57: 100 | W57: 10 | X57: 10
O58: 1-3 year | P58: 30 | Q58: 2 | R58: 0 | S58: 5 | T58: 230 | U58: 60 | V58: 150 | W58: 20 | X58: 20
O59: 4 year | P59: 40 | Q59: 2.15 | R59: 0 | S59: 5 | T59: 350 | U59: 130 | V59: 200 | W59: 35 | X59: 35
O60: 5 year | P60: 50 | Q60: 2.3 | R60: 0 | S60: 5 | T60: 470 | U60: 200 | V60: 250 | W60: 50 | X60: 50
O61: 6 year | P61: 60 | Q61: 2.45 | R61: 0 | S61: 5 | T61: 590 | U61: 270 | V61: 300 | W61: 65 | X61: 65
O62: 7 year | P62: 70 | Q62: 2.6 | R62: 0 | S62: 5 | T62: 710 | U62: 340 | V62: 350 | W62: 80 | X62: 80
O63: 8 year | P63: 80 | Q63: 2.75 | R63: 0 | S63: 5 | T63: 830 | U63: 410 | V63: 400 | W63: 95 | X63: 95
O64: 9 year | P64: 90 | Q64: 2.9 | R64: 0 | S64: 5 | T64: 950 | U64: 480 | V64: 450 | W64: 110 | X64: 110
O65: 10 year | P65: 100 | Q65: 3.05 | R65: 0 | S65: 5 | T65: 1070 | U65: 550 | V65: 500 | W65: 125 | X65: 125
O66: 11 year | P66: 110 | Q66: 3.2 | R66: 0 | S66: 5 | T66: 1190 | U66: 620 | V66: 550 | W66: 140 | X66: 140
O67: 12 year | P67: 120 | Q67: 3.35 | R67: 0 | S67: 5 | T67: 1310 | U67: 690 | V67: 600 | W67: 155 | X67: 155
O68: 13 year | P68: 130 | Q68: 3.5 | R68: 0 | S68: 5 | T68: 1430 | U68: 760 | V68: 650 | W68: 170 | X68: 170
O69: 14 year | P69: 140 | Q69: 3.65 | R69: 0 | S69: 5 | T69: 1550 | U69: 830 | V69: 700 | W69: 185 | X69: 185
O70: 15 year | P70: 150 | Q70: 3.8 | R70: 0 | S70: 5 | T70: 1670 | U70: 900 | V70: 750 | W70: 200 | X70: 200
O71: 16+ year | P71: 160 | Q71: 3.95 | R71: 0 | S71: 5 | T71: 1790 | U71: 970 | V71: 800 | W71: 215 | X71: 215
L72: Guava (10 x10 m) | O72: Planting | P72: 20 | Q72: 1 | R72: 1 | S72: 5 | T72: 80 | U72: 130 | V72: 100 | W72: 10 | X72: 10
O73: 1 year | P73: 30 | Q73: 1.5 | R73: 0 | S73: 5 | T73: 210 | U73: 130 | V73: 100 | W73: 20 | X73: 20
O74: 2 year | P74: 30 | Q74: 1.5 | R74: 0 | S74: 5 | T74: 210 | U74: 130 | V74: 100 | W74: 20 | X74: 20
O75: 3 year | P75: 30 | Q75: 1.5 | R75: 0 | S75: 5 | T75: 210 | U75: 130 | V75: 100 | W75: 20 | X75: 20
O76: 4-10 year | P76: 60 | Q76: 3 | R76: 0 | S76: 5 | T76: 420 | U76: 260 | V76: 200 | W76: 50 | X76: 50
O77: 11+ year | P77: 100 | Q77: 4 | R77: 0 | S77: 5 | T77: 840 | U77: 520 | V77: 400 | W77: 100 | X77: 100
L78: Sapota (7 x 8 m) | O78: Planting | P78: 30 | Q78: 2 | R78: 1 | S78: 5 | T78: 50 | U78: 50 | V78: 50 | W78: 10 | X78: 10
O79: 1 year | P79: 30 | Q79: 1.5 | R79: 0 | S79: 5 | T79: 90 | U79: 55 | V79: 45 | W79: 20 | X79: 20
O80: 2 year | P80: 40 | Q80: 1.65 | R80: 0 | S80: 5 | T80: 180 | U80: 110 | V80: 90 | W80: 40 | X80: 40
O81: 3 year | P81: 50 | Q81: 1.8 | R81: 0 | S81: 5 | T81: 270 | U81: 165 | V81: 135 | W81: 60 | X81: 60
O82: 4 year | P82: 60 | Q82: 1.95 | R82: 0 | S82: 5 | T82: 360 | U82: 220 | V82: 180 | W82: 80 | X82: 80
O83: 5 year | P83: 70 | Q83: 2.1 | R83: 0 | S83: 5 | T83: 450 | U83: 275 | V83: 225 | W83: 100 | X83: 100
O84: 6 year | P84: 80 | Q84: 2.25 | R84: 0 | S84: 5 | T84: 540 | U84: 330 | V84: 270 | W84: 120 | X84: 120
O85: 7 year | P85: 90 | Q85: 2.4 | R85: 0 | S85: 5 | T85: 630 | U85: 385 | V85: 315 | W85: 140 | X85: 140
O86: 8 year | P86: 100 | Q86: 2.55 | R86: 0 | S86: 5 | T86: 720 | U86: 440 | V86: 360 | W86: 160 | X86: 160
O87: 9 year | P87: 100 | Q87: 3 | R87: 0 | S87: 5 | T87: 810 | U87: 495 | V87: 405 | W87: 180 | X87: 180
O88: 10+ year | P88: 100 | Q88: 4 | R88: 0 | S88: 5 | T88: 900 | U88: 550 | V88: 450 | W88: 200 | X88: 200
L89: Aonla (8 x 10 m) | O89: Planting | P89: 30 | Q89: 1 | R89: 1 | S89: 5 | T89: 50 | U89: 50 | V89: 50 | W89: 10 | X89: 10
O90: 1 year | P90: 30 | Q90: 1.5 | R90: 0 | S90: 5 | T90: 175 | U90: 110 | V90: 170 | W90: 20 | X90: 20
O91: 2 year | P91: 35 | Q91: 1.65 | R91: 0 | S91: 5 | T91: 350 | U91: 220 | V91: 340 | W91: 40 | X91: 40
O92: 3 year | P92: 40 | Q92: 1.8 | R92: 0 | S92: 5 | T92: 525 | U92: 330 | V92: 510 | W92: 60 | X92: 60
O93: 4 year | P93: 45 | Q93: 1.95 | R93: 0 | S93: 5 | T93: 700 | U93: 440 | V93: 680 | W93: 80 | X93: 80
O94: 5 year | P94: 50 | Q94: 2.1 | R94: 0 | S94: 5 | T94: 875 | U94: 550 | V94: 850 | W94: 100 | X94: 100
O95: 6 year | P95: 55 | Q95: 2.25 | R95: 0 | S95: 5 | T95: 1050 | U95: 660 | V95: 1020 | W95: 120 | X95: 120
O96: 7 year | P96: 60 | Q96: 2.4 | R96: 0 | S96: 5 | T96: 1225 | U96: 770 | V96: 1190 | W96: 140 | X96: 140
O97: 8 year | P97: 65 | Q97: 2.55 | R97: 0 | S97: 5 | T97: 1400 | U97: 880 | V97: 1360 | W97: 160 | X97: 160
O98: 9 year | P98: 70 | Q98: 2.7 | R98: 0 | S98: 5 | T98: 1575 | U98: 990 | V98: 1530 | W98: 180 | X98: 180
O99: 10+ year | P99: 100 | Q99: 4 | R99: 0 | S99: 5 | T99: 1750 | U99: 1100 | V99: 1700 | W99: 200 | X99: 200
L100: Orange (5 x 5 m) | O100: Planting | P100: 30 | Q100: 1 | R100: 1 | S100: 5 | T100: 0 | U100: 100 | V100: 0 | W100: 10 | X100: 10
O101: 1 year | P101: 30 | Q101: 1.5 | R101: 0 | S101: 5 | T101: 130 | U101: 52 | V101: 60 | W101: 10 | X101: 10
O102: 2 year | P102: 35 | Q102: 1.65 | R102: 0 | S102: 5 | T102: 262 | U102: 104 | V102: 120 | W102: 20 | X102: 20
O103: 3 year | P103: 40 | Q103: 1.8 | R103: 0 | S103: 5 | T103: 394 | U103: 156 | V103: 180 | W103: 30 | X103: 30
O104: 4 year | P104: 45 | Q104: 1.95 | R104: 0 | S104: 5 | T104: 526 | U104: 208 | V104: 240 | W104: 40 | X104: 40
O105: 5 year | P105: 50 | Q105: 2.1 | R105: 0 | S105: 5 | T105: 658 | U105: 260 | V105: 300 | W105: 50 | X105: 50
O106: 6 year | P106: 55 | Q106: 2.25 | R106: 0 | S106: 5 | T106: 790 | U106: 312 | V106: 360 | W106: 60 | X106: 60
O107: 7 year | P107: 60 | Q107: 2.4 | R107: 0 | S107: 5 | T107: 922 | U107: 364 | V107: 420 | W107: 70 | X107: 70
O108: 8 year | P108: 65 | Q108: 2.55 | R108: 0 | S108: 5 | T108: 1054 | U108: 416 | V108: 480 | W108: 80 | X108: 80
O109: 9 year | P109: 70 | Q109: 2.7 | R109: 0 | S109: 5 | T109: 1186 | U109: 468 | V109: 540 | W109: 90 | X109: 90
O110: 10+ year | P110: 100 | Q110: 4 | R110: 0 | S110: 5 | T110: 1318 | U110: 520 | V110: 600 | W110: 100 | X110: 100
L111: Ber (8 x 8m) | O111: Planting | P111: 50 | Q111: 1 | R111: 1 | S111: 5 | T111: 0 | U111: 100 | V111: 0 | W111: 10 | X111: 10
O112: 1 year | P112: 10 | Q112: 1.5 | R112: 0 | S112: 5 | T112: 173 | U112: 122 | V112: 80 | W112: 10 | X112: 10
O113: 2 year | P113: 20 | Q113: 1.5 | R113: 0 | S113: 5 | T113: 346 | U113: 244 | V113: 160 | W113: 20 | X113: 20
O114: 3 year | P114: 25 | Q114: 1.5 | R114: 0 | S114: 5 | T114: 870 | U114: 590 | V114: 200 | W114: 30 | X114: 30
O115: 4 year | P115: 25 | Q115: 1.5 | R115: 0 | S115: 5 | T115: 870 | U115: 590 | V115: 200 | W115: 30 | X115: 30
O116: 5+ year | P116: 30 | Q116: 3 | R116: 0 | S116: 5 | T116: 962 | U116: 610 | V116: 250 | W116: 50 | X116: 50
L117: Peach (5 x 5m) | O117: Planting | P117: 30 | Q117: 1 | R117: 1 | S117: 5 | T117: 120 | U117: 87 | V117: 67 | W117: 10 | X117: 10
O118: 1 year | P118: 10 | Q118: 1.5 | R118: 0 | S118: 5 | T118: 120 | U118: 87 | V118: 67 | W118: 10 | X118: 10
O119: 2 year | P119: 20 | Q119: 1.65 | R119: 0 | S119: 5 | T119: 240 | U119: 174 | V119: 134 | W119: 20 | X119: 20
O120: 3 year | P120: 30 | Q120: 1.8 | R120: 0 | S120: 5 | T120: 360 | U120: 261 | V120: 201 | W120: 30 | X120: 30
O121: 4 year | P121: 40 | Q121: 1.95 | R121: 0 | S121: 5 | T121: 480 | U121: 348 | V121: 268 | W121: 40 | X121: 40
O122: 5 year | P122: 50 | Q122: 2.1 | R122: 0 | S122: 5 | T122: 600 | U122: 435 | V122: 335 | W122: 50 | X122: 50
O123: 6+ year | P123: 60 | Q123: 3 | R123: 0 | S123: 5 | T123: 720 | U123: 522 | V123: 402 | W123: 60 | X123: 60
L124: Cashew (7 x 8m) | O124: Planting | P124: 15 | Q124: 1 | R124: 1 | S124: 5 | T124: 0 | U124: 100 | V124: 0 | W124: 10 | X124: 10
O125: 1 year | P125: 15 | Q125: 1.5 | R125: 0 | S125: 5 | T125: 170 | U125: 80 | V125: 70 | W125: 10 | X125: 10
O126: 2 year | P126: 30 | Q126: 2.5 | R126: 0 | S126: 5 | T126: 340 | U126: 160 | V126: 140 | W126: 20 | X126: 20
O127: 3+ year | P127: 40 | Q127: 3 | R127: 0 | S127: 5 | T127: 910 | U127: 240 | V127: 200 | W127: 50 | X127: 50

Sheet VegetableCrop
C2: Vegetable Crop Inputs | L2: =LOOKUP(I4,K4:K21,L4:L21) -> Cabbage | M2: =LOOKUP(I4,K4:K21,M4:M21) -> 20 | N2: =LOOKUP(I4,K4:K21,N4:N21) -> 5 | O2: =LOOKUP(I4,K4:K21,O4:O21) -> 200 | P2: =LOOKUP(I4,K4:K21,P4:P21) -> 35 | Q2: =LOOKUP(I4,K4:K21,Q4:Q21) -> 50 | R2: =LOOKUP(I4,K4:K21,R4:R21) -> 5.25 | S2: =LOOKUP(I4,K4:K21,S4:S21) -> 1.575 | T2: =LOOKUP(I4,K4:K21,T4:T21) -> 0 | U2: =LOOKUP(I4,K4:K21,U4:U21) -> 0 | V2: =LOOKUP(I4,K4:K21,V4:V21) -> 50 | W2: =LOOKUP(I4,K4:K21,W4:W21) -> 25 | X2: =LOOKUP(I4,K4:K21,X4:X21) -> 25
L3: Crop | M3: FYM t/ha | N3: Vermi Compost t/ha | O3: N, t/ha | P3: P, t/ha | Q3: K, t/ha | R3: Zn, ppm | S3: B, ppm | T3: S, t/ha | U3: Before transplanting or at time of last ploughing | V3: At time of sowing/transplanting | W3: 25- 30 days after sowing | X3: 40-50 days days after sowing
I4: 2 | K4: 1 | L4: None
C5: Vegetable crop | K5: 2 | L5: Cabbage | M5: 20 | N5: 5 | O5: 200 | P5: 35 | Q5: 50 | R5: 5.25 | S5: 1.575 | T5: 0 | U5: 0 | V5: 50 | W5: 25 | X5: 25
K6: 3 | L6: Cauliflower | M6: 20 | N6: 5 | O6: 150 | P6: 26 | Q6: 50 | R6: 5.25 | S6: 1.575 | T6: 0 | U6: 0 | V6: 50 | W6: 25 | X6: 25
K7: 4 | L7: Brinjal | M7: 20 | N7: 5 | O7: 120 | P7: 26 | Q7: 50 | R7: 5.25 | S7: 1.575 | T7: 0 | U7: 33.3 | V7: 0 | W7: 33.3 | X7: 33.3
C8: Area | F8: 50 | G8: Decimal | K8: 5 | L8: Chilli | M8: 20 | N8: 5 | O8: 60 | P8: 22 | Q8: 42 | R8: 5.25 | S8: 1.575 | T8: 0 | U8: 33.3 | V8: 0 | W8: 33.3 | X8: 33.3
K9: 6 | L9: Capsicum | M9: 20 | N9: 5 | O9: 60 | P9: 44 | Q9: 42 | R9: 5.25 | S9: 1.575 | T9: 0 | U9: 33.3 | V9: 0 | W9: 33.3 | X9: 33.3
K10: 7 | L10: Tomato | M10: 20 | N10: 5 | O10: 120 | P10: 26 | Q10: 50 | R10: 5.25 | S10: 1.575 | T10: 0 | U10: 33.3 | V10: 0 | W10: 33.3 | X10: 33.3
K11: 8 | L11: Okra | M11: 20 | N11: 5 | O11: 120 | P11: 35 | Q11: 50 | R11: 5.25 | S11: 1.575 | T11: 0 | U11: 0 | V11: 50 | W11: 50 | X11: 0
K12: 9 | L12: French bean | M12: 20 | N12: 5 | O12: 60 | P12: 22 | Q12: 42 | R12: 5.25 | S12: 1.575 | T12: 0 | U12: 50 | V12: 0 | W12: 50 | X12: 0
K13: 10 | L13: Carrot | M13: 20 | N13: 5 | O13: 60 | P13: 22 | Q13: 62 | R13: 5.25 | S13: 1.575 | T13: 0 | U13: 0 | V13: 50 | W13: 0 | X13: 50
K14: 11 | L14: Radish | M14: 20 | N14: 5 | O14: 80 | P14: 26 | Q14: 50 | R14: 5.25 | S14: 1.575 | T14: 0 | U14: 0 | V14: 50 | W14: 50 | X14: 0
K15: 12 | L15: Cucumber | M15: 20 | N15: 5 | O15: 50 | P15: 17 | Q15: 33 | R15: 5.25 | S15: 1.575 | T15: 0 | U15: 0 | V15: 50 | W15: 50 | X15: 0
K16: 13 | L16: Ridgegourd | M16: 20 | N16: 5 | O16: 50 | P16: 26 | Q16: 42 | R16: 5.25 | S16: 1.575 | T16: 0 | U16: 50 | V16: 0 | W16: 50 | X16: 0
K17: 14 | L17: Pointed gourd | M17: 20 | N17: 5 | O17: 120 | P17: 26 | Q17: 42 | R17: 5.25 | S17: 1.575 | T17: 0 | U17: 33.33 | V17: 0 | W17: 33.33 | X17: 33.33
K18: 15 | L18: Bottle gourd | M18: 20 | N18: 5 | O18: 50 | P18: 26 | Q18: 42 | R18: 5.25 | S18: 1.575 | T18: 0 | U18: 0 | V18: 50 | W18: 50 | X18: 0
K19: 16 | L19: Bitter Gourd | M19: 20 | N19: 5 | O19: 50 | P19: 26 | Q19: 42 | R19: 5.25 | S19: 1.575 | T19: 0 | U19: 0 | V19: 50 | W19: 50 | X19: 0
K20: 17 | L20: Potato | M20: 20 | N20: 5 | O20: 125 | P20: 39 | Q20: 75 | R20: 5.25 | S20: 1.575 | T20: 0 | U20: 0 | V20: 50 | W20: 50 | X20: 0
K21: 18 | L21: Onion | M21: 20 | N21: 5 | O21: 80 | P21: 26 | Q21: 66 | R21: 5.25 | S21: 1.575 | T21: 0 | U21: 0 | V21: 50 | W21: 50 | X21: 0

Sheet OilseedCrop
C2: Oilseed Crop Inputs
L3: =LOOKUP(I6,K5:K18,L5:L18) -> Mustard | M3: =LOOKUP(I6,K5:K13,M6:M13) -> 3 | N3: =LOOKUP(I6,K5:K13,N6:N13) -> 2 | O3: =LOOKUP(I6,K5:K13,O5:O13) -> 50 | P3: =LOOKUP(I6,K5:K13,P5:P13) -> 25 | Q3: =LOOKUP(I6,K5:K13,Q5:Q13) -> 25 | R3: =LOOKUP(I6,K5:K13,R5:R13) -> 5.25 | S3: =LOOKUP(I6,K5:K13,S5:S13) -> 1.575 | T3: =LOOKUP(I6,K5:K13,T5:T13) -> 20 | U3: =LOOKUP(I6,K5:K13,U5:U13) -> 0 | V3: =LOOKUP(I6,K5:K13,V5:V13) -> 50 | W3: =LOOKUP(I6,K5:K13,W5:W13) -> 50 | X3: =LOOKUP(I6,K5:K13,X5:X13) -> 0
L4: Crop | M4: FYM t/ha | N4: Vermi Compost t/ha | O4: N, t/ha | P4: P, t/ha | Q4: K, t/ha | R4: Zn, ppm | S4: B, ppm | T4: S, t/ha | U4: Before transplanting or at time of last ploughing | V4: At time of sowing/transplanting | W4: 25- 30 days after sowing | X4: 40-50 days days after sowing
K5: 1 | L5: None
C6: Oilseed Crop | I6: 4 | K6: 2 | L6: Linseed irrigated | M6: 3 | N6: 2 | O6: 50 | P6: 30 | Q6: 20 | R6: 5.25 | S6: 1.575 | T6: 20 | U6: 0 | V6: 50 | W6: 50 | X6: 0
K7: 3 | L7: Linseed unirrigated | M7: 3 | N7: 2 | O7: 30 | P7: 20 | Q7: 20 | R7: 5.25 | S7: 1.575 | T7: 20 | U7: 0 | V7: 50 | W7: 50 | X7: 0
K8: 4 | L8: Mustard | M8: 3 | N8: 3 | O8: 50 | P8: 25 | Q8: 25 | R8: 5.25 | S8: 1.575 | T8: 20 | U8: 0 | V8: 50 | W8: 50 | X8: 0
C9: Area | F9: 100 | G9: Decimal | K9: 5 | L9: Soyabean | M9: 3 | N9: 2 | O9: 25 | P9: 50 | Q9: 20 | R9: 5.25 | S9: 1.575 | T9: 40 | U9: 0 | V9: 100 | W9: 0 | X9: 0
K10: 6 | L10: Groundnuts | M10: 3 | N10: 2 | O10: 25 | P10: 50 | Q10: 20 | R10: 5.25 | S10: 1.575 | T10: 40 | U10: 0 | V10: 100 | W10: 0 | X10: 0
K11: 7 | L11: Til | M11: 3 | N11: 2 | O11: 40 | P11: 20 | Q11: 20 | R11: 5.25 | S11: 1.575 | T11: 0 | U11: 0 | V11: 50 | W11: 50 | X11: 0
K12: 8 | L12: Niger (surguja) | M12: 3 | N12: 2 | O12: 20 | P12: 20 | Q12: 20 | R12: 5.25 | S12: 1.575 | T12: 0 | U12: 0 | V12: 100 | W12: 0 | X12: 0
K13: 9 | L13: Sunflower | M13: 3 | N13: 2 | O13: 40 | P13: 50 | Q13: 25 | R13: 5.25 | S13: 1.575 | T13: 25 | U13: 0 | V13: 100 | W13: 0 | X13: 0

Sheet FruitCrop
C2: Fruit Crop Inputs
J3: =CONCATENATE(J6,J8) -> Ber (8 x 8m)4 year | Q3: =J3 -> Ber (8 x 8m)4 year | R3: =J8 -> 4 year | S3: =INDEX($S$5:$S$157,MATCH($Q$3,O5:O157,0)*1) -> 64 | T3: =INDEX($T$5:$T$157,MATCH($Q$3,O5:O157,0)*1) -> 25 | U3: =INDEX($U$5:$U$157,MATCH($Q$3,O5:O157,0)*1) -> 1.5 | V3: =INDEX($V$5:$V$157,MATCH($Q$3,O5:O157,0)*1) -> 0 | W3: =INDEX($W$5:$W$157,MATCH($Q$3,O5:O157,0)*1) -> 5 | X3: =INDEX($X$5:$X$157,MATCH($Q$3,O5:O157,0)*1) -> 870 | Y3: =INDEX($Y$5:$Y$157,MATCH($Q$3,O5:O157,0)*1) -> 590 | Z3: =INDEX($Z$5:$Z$157,MATCH($Q$3,O5:O157,0)*1) -> 200 | AA3: =INDEX($AA$5:$AA$157,MATCH($Q$3,O5:O157,0)*1) -> 30 | AB3: =INDEX($AB$5:$AB$157,MATCH($Q$3,O5:O157,0)*1) -> 30 | AC3: =INDEX($AC$5:$AC$157,MATCH($Q$3,O5:O157,0)*1) -> Apply full dose of FYM, ½ dose of urea, DAP, MOP, zinc sulphate, borax in the month of June-July at a distance of 100 cm from trunk around the tree in a trench of 15 cm depth. Another ½ dose of urea in November-December.
S4: Area per plant | T4: FYM (kg) | U4: Neem/Karanj cake (kg) | V4: Bone meal (kg) | W4: Lime (kg) | X4: Urea (g) | Y4: DAP (g) | Z4: MOP (g) | AA4: Zinc sulphate (g) | AB4: Borax (g)
K5: 1 | L5: Planting | M5: 1 | N5: Mango (10 x10 m) | O5: =CONCATENATE(Q5,R5) -> Mango (10 x10 m)Planting | Q5: Mango (10 x10 m) | R5: Planting | S5: 100 | T5: 30 | U5: 2 | V5: 1 | W5: 5 | X5: 100 | Y5: 50 | Z5: 100 | AA5: 10 | AB5: 10 | AC5: In pit of size of 90cm x 90cm x 90 cm, add and mix FYM, neem or karanj cake, bone meal and lime with top soil from the pit and fill the pit at the start of rain. After 2-3 rains, plant the saplings with the addition of 100g urea, 50 g DAP, 100g MOP, 10 g zinc sulphate and 10 g borax
C6: Crop | I6: 7 | J6: =LOOKUP(I6,M5:M13,N5:N13) -> Ber (8 x 8m) | K6: 2 | L6: 1 year | M6: 2 | N6: Litchi (10 x10 m) | O6: Mango (10 x10 m)1 year | Q6: Mango (10 x10 m) | R6: 1 year | S6: 100 | T6: 30 | U6: 1.5 | V6: 0 | W6: 5 | X6: 180 | Y6: 60 | Z6: 150 | AA6: 20 | AB6: 20 | AC6: Apply recommended dose of fertilizers at a distance of 45 cm from trunk around the tree in a trench of 30 cm depth in the month of June.
K7: 3 | L7: 2 year | M7: 3 | N7: Guava (10 x10 m) | O7: Mango (10 x10 m)2 year | Q7: Mango (10 x10 m) | R7: 2 year | S7: 100 | T7: 30 | U7: 1.5 | V7: 0 | W7: 5 | X7: 180 | Y7: 60 | Z7: 150 | AA7: 20 | AB7: 20 | AC7: Apply recommended dose of fertilizers at a distance of 45 cm from trunk around the tree in a trench of 30 cm depth in the month of June.
I8: 5 | J8: =LOOKUP(I8,K5:K21,L5:L21) -> 4 year | K8: 4 | L8: 3 year | M8: 4 | N8: Sapota (7 x 8 m) | O8: Mango (10 x10 m)3 year | Q8: Mango (10 x10 m) | R8: 3 year | S8: 100 | T8: 30 | U8: 1.5 | V8: 0 | W8: 5 | X8: 180 | Y8: 60 | Z8: 150 | AA8: 20 | AB8: 20 | AC8: Apply recommended dose of fertilizers at a distance of 45 cm from trunk around the tree in a trench of 30 cm depth in the month of June.
C9: Age of Plants | K9: 5 | L9: 4 year | M9: 5 | N9: Aonla (8 x 10 m) | O9: Mango (10 x10 m)4 year | Q9: Mango (10 x10 m) | R9: 4 year | S9: 100 | T9: 40 | U9: 1.65 | V9: 0 | W9: 5 | X9: 270 | Y9: 95 | Z9: 200 | AA9: 35 | AB9: 35 | AC9: Apply recommended dose of fertilizers at a distance of 45 cm from trunk around the tree in a trench of 30 cm depth in the month of June.
K10: 6 | L10: 5 year | M10: 6 | N10: Orange (5 x 5 m) | O10: Mango (10 x10 m)5 year | Q10: Mango (10 x10 m) | R10: 5 year | S10: 100 | T10: 50 | U10: 1.8 | V10: 0 | W10: 5 | X10: 360 | Y10: 130 | Z10: 250 | AA10: 50 | AB10: 50 | AC10: Apply full dose of FYM, karanja cake, zinc sulphate, borax, lime, 50 % each of urea, DAP, MOP in June; Apply remaining 50 % urea, DAP, MOP in September.
K11: 7 | L11: 6 year | M11: 7 | N11: Ber (8 x 8m) | O11: Mango (10 x10 m)6 year | Q11: Mango (10 x10 m) | R11: 6 year | S11: 100 | T11: 60 | U11: 1.95 | V11: 0 | W11: 5 | X11: 450 | Y11: 165 | Z11: 300 | AA11: 65 | AB11: 65 | AC11: Apply full dose of FYM, karanja cake, zinc sulphate, borax, lime, 50 % each of urea, DAP, MOP in June; Apply remaining 50 % urea, DAP, MOP in September.
C12: Area | F12: 120 | G12: Decimal | K12: 8 | L12: 7 year | M12: 8 | N12: Peach (5 x 5m) | O12: Mango (10 x10 m)7 year | Q12: Mango (10 x10 m) | R12: 7 year | S12: 100 | T12: 70 | U12: 2.1 | V12: 0 | W12: 5 | X12: 540 | Y12: 200 | Z12: 350 | AA12: 80 | AB12: 80 | AC12: Apply full dose of FYM, karanja cake, zinc sulphate, borax, lime, 50 % each of urea, DAP, MOP in June; Apply remaining 50 % urea, DAP, MOP in September.
K13: 9 | L13: 8 year | M13: 9 | N13: Cashew (7 x 8m) | O13: Mango (10 x10 m)8 year | Q13: Mango (10 x10 m) | R13: 8 year | S13: 100 | T13: 80 | U13: 2.25 | V13: 0 | W13: 5 | X13: 630 | Y13: 235 | Z13: 400 | AA13: 95 | AB13: 95 | AC13: Apply full dose of FYM, karanja cake, zinc sulphate, borax, lime, 50 % each of urea, DAP, MOP in June; Apply remaining 50 % urea, DAP, MOP in September.
K14: 10 | L14: 9 year | O14: Mango (10 x10 m)9 year | Q14: Mango (10 x10 m) | R14: 9 year | S14: 100 | T14: 90 | U14: 2.4 | V14: 0 | W14: 5 | X14: 720 | Y14: 270 | Z14: 450 | AA14: 110 | AB14: 110 | AC14: Apply full dose of FYM, karanja cake, zinc sulphate, borax, lime, 50 % each of urea, DAP, MOP in June; Apply remaining 50 % urea, DAP, MOP in September.
K15: 11 | L15: 10 year | O15: Mango (10 x10 m)10 year | Q15: Mango (10 x10 m) | R15: 10 year | S15: 100 | T15: 100 | U15: 2.55 | V15: 0 | W15: 5 | X15: 810 | Y15: 305 | Z15: 500 | AA15: 125 | AB15: 125 | AC15: Apply full dose of FYM, karanja cake, zinc sulphate, borax, lime, 50 % each of urea, DAP, MOP in June; Apply remaining 50 % urea, DAP, MOP in September.
K16: 12 | L16: 11 year | O16: Mango (10 x10 m)11 year | Q16: Mango (10 x10 m) | R16: 11 year | S16: 100 | T16: 110 | U16: 2.7 | V16: 0 | W16: 5 | X16: 900 | Y16: 340 | Z16: 550 | AA16: 140 | AB16: 140 | AC16: Apply full dose of FYM, karanja cake, zinc sulphate, borax, lime, 50 % each of urea, DAP, MOP in June; Apply remaining 50 % urea, DAP, MOP in September.
K17: 13 | L17: 12 year | O17: Mango (10 x10 m)12 year | Q17: Mango (10 x10 m) | R17: 12 year | S17: 100 | T17: 120 | U17: 2.85 | V17: 0 | W17: 5 | X17: 990 | Y17: 375 | Z17: 600 | AA17: 155 | AB17: 155 | AC17: Apply full dose of FYM, karanja cake, zinc sulphate, borax, lime, 50 % each of urea, DAP, MOP in June; Apply remaining 50 % urea, DAP, MOP in September.
K18: 14 | L18: 13 year | O18: Mango (10 x10 m)13 year | Q18: Mango (10 x10 m) | R18: 13 year | S18: 100 | T18: 130 | U18: 3 | V18: 0 | W18: 5 | X18: 1080 | Y18: 410 | Z18: 650 | AA18: 170 | AB18: 170 | AC18: Apply full dose of FYM, karanja cake, zinc sulphate, borax, lime, 50 % each of urea, DAP, MOP in June; Apply remaining 50 % urea, DAP, MOP in September.
K19: 15 | L19: 14 year | O19: Mango (10 x10 m)14 year | Q19: Mango (10 x10 m) | R19: 14 year | S19: 100 | T19: 140 | U19: 3.15 | V19: 0 | W19: 5 | X19: 1170 | Y19: 445 | Z19: 700 | AA19: 185 | AB19: 185 | AC19: Apply full dose of FYM, karanja cake, zinc sulphate, borax, lime, 50 % each of urea, DAP, MOP in June; Apply remaining 50 % urea, DAP, MOP in September.
K20: 16 | L20: 15 year | O20: Mango (10 x10 m)15 year | Q20: Mango (10 x10 m) | R20: 15 year | S20: 100 | T20: 150 | U20: 3.3 | V20: 0 | W20: 5 | X20: 1260 | Y20: 480 | Z20: 750 | AA20: 200 | AB20: 200 | AC20: Apply full dose of FYM, karanja cake, zinc sulphate, borax, lime, 50 % each of urea, DAP, MOP in June; Apply remaining 50 % urea, DAP, MOP in September.
K21: 17 | L21: 16 year | O21: Mango (10 x10 m)16 year | Q21: Mango (10 x10 m) | R21: 16 year | S21: 100 | T21: 160 | U21: 3.45 | V21: 0 | W21: 5 | X21: 1350 | Y21: 515 | Z21: 800 | AA21: 215 | AB21: 215 | AC21: Apply full dose of FYM, karanja cake, zinc sulphate, borax, lime, 50 % each of urea, DAP, MOP in June; Apply remaining 50 % urea, DAP, MOP in September.
O22: Litchi (10 x10 m)Planting | Q22: Litchi (10 x10 m) | R22: Planting | S22: 100 | T22: 30 | U22: 2 | V22: 1 | W22: 5 | X22: 100 | Y22: 50 | Z22: 100 | AA22: 10 | AB22: 10 | AC22: In pits of size of 90cm x 90cm x 90 cm, add and mix FYM, neem or karanj cake, bone meal, lime with top soil of dug out pit and fill the pit at the start of rain. After 2-3 rains, plant the saplings with the addition of 100g urea, 50 g DAP, 100g MOP, 10 g zinc sulphate and 10 g borax
O23: Litchi (10 x10 m)1 year | Q23: Litchi (10 x10 m) | R23: 1 year | S23: 100 | T23: 30 | U23: 2 | V23: 0 | W23: 5 | X23: 230 | Y23: 60 | Z23: 150 | AA23: 20 | AB23: 20 | AC23: Apply all the fertilizer at a distance of 45 cm from trunk around the tree in a trench of 30 cm depth in the month of June.
O24: Litchi (10 x10 m)2 year | Q24: Litchi (10 x10 m) | R24: 2 year | S24: 100 | T24: 30 | U24: 2 | V24: 0 | W24: 5 | X24: 230 | Y24: 60 | Z24: 150 | AA24: 20 | AB24: 20 | AC24: Apply all the fertilizer at a distance of 45 cm from trunk around the tree in a trench of 30 cm depth in the month of June.
O25: Litchi (10 x10 m)3 year | Q25: Litchi (10 x10 m) | R25: 3 year | S25: 100 | T25: 30 | U25: 2 | V25: 0 | W25: 5 | X25: 230 | Y25: 60 | Z25: 150 | AA25: 20 | AB25: 20 | AC25: Apply all the fertilizer at a distance of 45 cm from trunk around the tree in a trench of 30 cm depth in the month of June.
O26: Litchi (10 x10 m)4 year | Q26: Litchi (10 x10 m) | R26: 4 year | S26: 100 | T26: 40 | U26: 2.15 | V26: 0 | W26: 5 | X26: 350 | Y26: 130 | Z26: 200 | AA26: 35 | AB26: 35 | AC26: Apply all the fertilizer at a distance of 45 cm from trunk around the tree in a trench of 30 cm depth in the month of June.
O27: Litchi (10 x10 m)5 year | Q27: Litchi (10 x10 m) | R27: 5 year | S27: 100 | T27: 50 | U27: 2.3 | V27: 0 | W27: 5 | X27: 470 | Y27: 200 | Z27: 250 | AA27: 50 | AB27: 50 | AC27: Apply 1/3rd urea during fruit development (pea size) with irrigation. Apply full dose FYM, karanj cake, DAP, MOP, Apply remaining 2/3rd of urea, zinc sulphate, borax, lime in June-July by making 60 cm deep trench around the tree 1.5-2.0 m away from the trunk during harvesting and pruning.
O28: Litchi (10 x10 m)6 year | Q28: Litchi (10 x10 m) | R28: 6 year | S28: 100 | T28: 60 | U28: 2.45 | V28: 0 | W28: 5 | X28: 590 | Y28: 270 | Z28: 300 | AA28: 65 | AB28: 65 | AC28: Apply 1/3rd urea during fruit development (pea size) with irrigation. Apply full dose FYM, karanj cake, DAP, MOP, Apply remaining 2/3rd of urea, zinc sulphate, borax, lime in June-July by making 60 cm deep trench around the tree 1.5-2.0 m away from the trunk during harvesting and pruning.
O29: Litchi (10 x10 m)7 year | Q29: Litchi (10 x10 m) | R29: 7 year | S29: 100 | T29: 70 | U29: 2.6 | V29: 0 | W29: 5 | X29: 710 | Y29: 340 | Z29: 350 | AA29: 80 | AB29: 80 | AC29: Apply 1/3rd urea during fruit development (pea size) with irrigation. Apply full dose FYM, karanj cake, DAP, MOP, Apply remaining 2/3rd of urea, zinc sulphate, borax, lime in June-July by making 60 cm deep trench around the tree 1.5-2.0 m away from the trunk during harvesting and pruning.
O30: Litchi (10 x10 m)8 year | Q30: Litchi (10 x10 m) | R30: 8 year | S30: 100 | T30: 80 | U30: 2.75 | V30: 0 | W30: 5 | X30: 830 | Y30: 410 | Z30: 400 | AA30: 95 | AB30: 95 | AC30: Apply 1/3rd urea during fruit development (pea size) with irrigation. Apply full dose FYM, karanj cake, DAP, MOP, Apply remaining 2/3rd of urea, zinc sulphate, borax, lime in June-July by making 60 cm deep trench around the tree 1.5-2.0 m away from the trunk during harvesting and pruning.
O31: Litchi (10 x10 m)9 year | Q31: Litchi (10 x10 m) | R31: 9 year | S31: 100 | T31: 90 | U31: 2.9 | V31: 0 | W31: 5 | X31: 950 | Y31: 480 | Z31: 450 | AA31: 110 | AB31: 110 | AC31: Apply 1/3rd urea during fruit development (pea size) with irrigation. Apply full dose FYM, karanj cake, DAP, MOP, Apply remaining 2/3rd of urea, zinc sulphate, borax, lime in June-July by making 60 cm deep trench around the tree 1.5-2.0 m away from the trunk during harvesting and pruning.
O32: Litchi (10 x10 m)10 year | Q32: Litchi (10 x10 m) | R32: 10 year | S32: 100 | T32: 100 | U32: 3.05 | V32: 0 | W32: 5 | X32: 1070 | Y32: 550 | Z32: 500 | AA32: 125 | AB32: 125 | AC32: Apply 1/3rd urea during fruit development (pea size) with irrigation. Apply full dose FYM, karanj cake, DAP, MOP, Apply remaining 2/3rd of urea, zinc sulphate, borax, lime in June-July by making 60 cm deep trench around the tree 1.5-2.0 m away from the trunk during harvesting and pruning.
O33: Litchi (10 x10 m)11 year | Q33: Litchi (10 x10 m) | R33: 11 year | S33: 100 | T33: 110 | U33: 3.2 | V33: 0 | W33: 5 | X33: 1190 | Y33: 620 | Z33: 550 | AA33: 140 | AB33: 140 | AC33: Apply 1/3rd urea during fruit development (pea size) with irrigation. Apply full dose FYM, karanj cake, DAP, MOP, Apply remaining 2/3rd of urea, zinc sulphate, borax, lime in June-July by making 60 cm deep trench around the tree 1.5-2.0 m away from the trunk during harvesting and pruning.
O34: Litchi (10 x10 m)12 year | Q34: Litchi (10 x10 m) | R34: 12 year | S34: 100 | T34: 120 | U34: 3.35 | V34: 0 | W34: 5 | X34: 1310 | Y34: 690 | Z34: 600 | AA34: 155 | AB34: 155 | AC34: Apply 1/3rd urea during fruit development (pea size) with irrigation. Apply full dose FYM, karanj cake, DAP, MOP, Apply remaining 2/3rd of urea, zinc sulphate, borax, lime in June-July by making 60 cm deep trench around the tree 1.5-2.0 m away from the trunk during harvesting and pruning.
O35: Litchi (10 x10 m)13 year | Q35: Litchi (10 x10 m) | R35: 13 year | S35: 100 | T35: 130 | U35: 3.5 | V35: 0 | W35: 5 | X35: 1430 | Y35: 760 | Z35: 650 | AA35: 170 | AB35: 170 | AC35: Apply 1/3rd urea during fruit development (pea size) with irrigation. Apply full dose FYM, karanj cake, DAP, MOP, Apply remaining 2/3rd of urea, zinc sulphate, borax, lime in June-July by making 60 cm deep trench around the tree 1.5-2.0 m away from the trunk during harvesting and pruning.
O36: Litchi (10 x10 m)14 year | Q36: Litchi (10 x10 m) | R36: 14 year | S36: 100 | T36: 140 | U36: 3.65 | V36: 0 | W36: 5 | X36: 1550 | Y36: 830 | Z36: 700 | AA36: 185 | AB36: 185 | AC36: Apply 1/3rd urea during fruit development (pea size) with irrigation. Apply full dose FYM, karanj cake, DAP, MOP, Apply remaining 2/3rd of urea, zinc sulphate, borax, lime in June-July by making 60 cm deep trench around the tree 1.5-2.0 m away from the trunk during harvesting and pruning.
O37: Litchi (10 x10 m)15 year | Q37: Litchi (10 x10 m) | R37: 15 year | S37: 100 | T37: 150 | U37: 3.8 | V37: 0 | W37: 5 | X37: 1670 | Y37: 900 | Z37: 750 | AA37: 200 | AB37: 200 | AC37: Apply 1/3rd urea during fruit development (pea size) with irrigation. Apply full dose FYM, karanj cake, DAP, MOP, Apply remaining 2/3rd of urea, zinc sulphate, borax, lime in June-July by making 60 cm deep trench around the tree 1.5-2.0 m away from the trunk during harvesting and pruning.
O38: Litchi (10 x10 m)16 year | Q38: Litchi (10 x10 m) | R38: 16 year | S38: 100 | T38: 160 | U38: 3.95 | V38: 0 | W38: 5 | X38: 1790 | Y38: 970 | Z38: 800 | AA38: 215 | AB38: 215 | AC38: Apply 1/3rd urea during fruit development (pea size) with irrigation. Apply full dose FYM, karanj cake, DAP, MOP, Apply remaining 2/3rd of urea, zinc sulphate, borax, lime in June-July by making 60 cm deep trench around the tree 1.5-2.0 m away from the trunk during harvesting and pruning.
O39: Guava (10 x10 m)Planting | Q39: Guava (10 x10 m) | R39: Planting | S39: 100 | T39: 20 | U39: 1 | V39: 1 | W39: 5 | X39: 80 | Y39: 130 | Z39: 100 | AA39: 10 | AB39: 10 | AC39: Dig pits of size of 60cm x 60cm x 60 cm. Add and mix FYM, neem or karanj cake, bone meal, lime with top soil of dug out pit and fill the pit at the start of rain. After 2-3 rains, plant the saplings with addition of 80g urea, 130 g DAP, 100g MOP, 10 g zinc sulphate, 10 g borax.
O40: Guava (10 x10 m)1 year | Q40: Guava (10 x10 m) | R40: 1 year | S40: 100 | T40: 30 | U40: 1.5 | V40: 0 | W40: 5 | X40: 210 | Y40: 130 | Z40: 100 | AA40: 20 | AB40: 20 | AC40: Apply all the fertilizer at a distance of 45 cm from trunk around the tree in a trench of 15 cm depth in the month of June-July.
O41: Guava (10 x10 m)2 year | Q41: Guava (10 x10 m) | R41: 2 year | S41: 100 | T41: 30 | U41: 1.5 | V41: 0 | W41: 5 | X41: 210 | Y41: 130 | Z41: 100 | AA41: 20 | AB41: 20 | AC41: Apply all the fertilizer at a distance of 45 cm from trunk around the tree in a trench of 15 cm depth in the month of June-July.
O42: Guava (10 x10 m)3 year | Q42: Guava (10 x10 m) | R42: 3 year | S42: 100 | T42: 30 | U42: 1.5 | V42: 0 | W42: 5 | X42: 210 | Y42: 130 | Z42: 100 | AA42: 20 | AB42: 20 | AC42: Apply all the fertilizer at a distance of 45 cm from trunk around the tree in a trench of 15 cm depth in the month of June-July.
O43: Guava (10 x10 m)4 year | Q43: Guava (10 x10 m) | R43: 4 year | S43: 100 | T43: 60 | U43: 3 | V43: 0 | W43: 5 | X43: 420 | Y43: 260 | Z43: 200 | AA43: 50 | AB43: 50 | AC43: Apply full dose of FYM, DAP, MOP and ½ dose of urea in June-July one meter away from the trunk in 15cm deep trench and cover with soil. Apply remaining ½ dose of urea in October and irrigate.
O44: Guava (10 x10 m)5 year | Q44: Guava (10 x10 m) | R44: 5 year | S44: 100 | T44: 60 | U44: 3 | V44: 0 | W44: 5 | X44: 420 | Y44: 260 | Z44: 200 | AA44: 50 | AB44: 50 | AC44: Apply full dose of FYM, DAP, MOP and ½ dose of urea in June-July one meter away from the trunk in 15cm deep trench and cover with soil. Apply remaining ½ dose of urea in October and irrigate.
O45: Guava (10 x10 m)6 year | Q45: Guava (10 x10 m) | R45: 6 year | S45: 100 | T45: 60 | U45: 3 | V45: 0 | W45: 5 | X45: 420 | Y45: 260 | Z45: 200 | AA45: 50 | AB45: 50 | AC45: Apply full dose of FYM, DAP, MOP and ½ dose of urea in June-July one meter away from the trunk in 15cm deep trench and cover with soil. Apply remaining ½ dose of urea in October and irrigate.
O46: Guava (10 x10 m)7 year | Q46: Guava (10 x10 m) | R46: 7 year | S46: 100 | T46: 60 | U46: 3 | V46: 0 | W46: 5 | X46: 420 | Y46: 260 | Z46: 200 | AA46: 50 | AB46: 50 | AC46: Apply full dose of FYM, DAP, MOP and ½ dose of urea in June-July one meter away from the trunk in 15cm deep trench and cover with soil. Apply remaining ½ dose of urea in October and irrigate.
O47: Guava (10 x10 m)8 year | Q47: Guava (10 x10 m) | R47: 8 year | S47: 100 | T47: 60 | U47: 3 | V47: 0 | W47: 5 | X47: 420 | Y47: 260 | Z47: 200 | AA47: 50 | AB47: 50 | AC47: Apply full dose of FYM, DAP, MOP and ½ dose of urea in June-July one meter away from the trunk in 15cm deep trench and cover with soil. Apply remaining ½ dose of urea in October and irrigate.
O48: Guava (10 x10 m)9 year | Q48: Guava (10 x10 m) | R48: 9 year | S48: 100 | T48: 60 | U48: 3 | V48: 0 | W48: 5 | X48: 420 | Y48: 260 | Z48: 200 | AA48: 50 | AB48: 50 | AC48: Apply full dose of FYM, DAP, MOP and ½ dose of urea in June-July one meter away from the trunk in 15cm deep trench and cover with soil. Apply remaining ½ dose of urea in October and irrigate.
O49: Guava (10 x10 m)10 year | Q49: Guava (10 x10 m) | R49: 10 year | S49: 100 | T49: 60 | U49: 3 | V49: 0 | W49: 5 | X49: 420 | Y49: 260 | Z49: 200 | AA49: 50 | AB49: 50 | AC49: Apply full dose of FYM, DAP, MOP and ½ dose of urea in June-July one meter away from the trunk in 15cm deep trench and cover with soil. Apply remaining ½ dose of urea in October and irrigate.
O50: Guava (10 x10 m)11 year | Q50: Guava (10 x10 m) | R50: 11 year | S50: 100 | T50: 100 | U50: 4 | V50: 0 | W50: 5 | X50: 840 | Y50: 520 | Z50: 400 | AA50: 100 | AB50: 100 | AC50: Apply full dose of FYM, DAP, MOP and ½ dose of urea in June-July one meter away from the trunk in 15cm deep trench and cover with soil. Apply remaining ½ dose of urea in October and irrigate.
O51: Guava (10 x10 m)12 year | Q51: Guava (10 x10 m) | R51: 12 year | S51: 100 | T51: 100 | U51: 4 | V51: 0 | W51: 5 | X51: 840 | Y51: 520 | Z51: 400 | AA51: 100 | AB51: 100 | AC51: Apply full dose of FYM, DAP, MOP and ½ dose of urea in June-July one meter away from the trunk in 15cm deep trench and cover with soil. Apply remaining ½ dose of urea in October and irrigate.
O52: Guava (10 x10 m)13 year | Q52: Guava (10 x10 m) | R52: 13 year | S52: 100 | T52: 100 | U52: 4 | V52: 0 | W52: 5 | X52: 840 | Y52: 520 | Z52: 400 | AA52: 100 | AB52: 100 | AC52: Apply full dose of FYM, DAP, MOP and ½ dose of urea in June-July one meter away from the trunk in 15cm deep trench and cover with soil. Apply remaining ½ dose of urea in October and irrigate.
O53: Guava (10 x10 m)14 year | Q53: Guava (10 x10 m) | R53: 14 year | S53: 100 | T53: 100 | U53: 4 | V53: 0 | W53: 5 | X53: 840 | Y53: 520 | Z53: 400 | AA53: 100 | AB53: 100 | AC53: Apply full dose of FYM, DAP, MOP and ½ dose of urea in June-July one meter away from the trunk in 15cm deep trench and cover with soil. Apply remaining ½ dose of urea in October and irrigate.
O54: Guava (10 x10 m)15 year | Q54: Guava (10 x10 m) | R54: 15 year | S54: 100 | T54: 100 | U54: 4 | V54: 0 | W54: 5 | X54: 840 | Y54: 520 | Z54: 400 | AA54: 100 | AB54: 100 | AC54: Apply full dose of FYM, DAP, MOP and ½ dose of urea in June-July one meter away from the trunk in 15cm deep trench and cover with soil. Apply remaining ½ dose of urea in October and irrigate.
O55: Guava (10 x10 m)16 year | Q55: Guava (10 x10 m) | R55: 16 year | S55: 100 | T55: 100 | U55: 4 | V55: 0 | W55: 5 | X55: 840 | Y55: 520 | Z55: 400 | AA55: 100 | AB55: 100 | AC55: Apply full dose of FYM, DAP, MOP and ½ dose of urea in June-July one meter away from the trunk in 15cm deep trench and cover with soil. Apply remaining ½ dose of urea in October and irrigate.
O56: Sapota (7 x 8 m)Planting | Q56: Sapota (7 x 8 m) | R56: Planting | S56: 56 | T56: 30 | U56: 2 | V56: 1 | W56: 5 | X56: 50 | Y56: 50 | Z56: 50 | AA56: 10 | AB56: 10 | AC56: Dig pits of size 90cm x 90cm x 90 cm, Add and mix FYM, neem or karanj cake, bone meal, lime with top soil of dug out pit and fill the pit at the start of rain. After 2-3 rains, plant the saplings with the addition of 50g urea, 50g DAP, 50g MOP, 10 g zinc sulphate, 10 g borax.
O57: Sapota (7 x 8 m)1 year | Q57: Sapota (7 x 8 m) | R57: 1 year | S57: 56 | T57: 30 | U57: 1.5 | V57: 0 | W57: 5 | X57: 90 | Y57: 55 | Z57: 45 | AA57: 20 | AB57: 20 | AC57: Apply all the fertilizer at a distance of 45 cm from trunk around the tree in a trench of 15 cm depth in the month of June-July.
O58: Sapota (7 x 8 m)2 year | Q58: Sapota (7 x 8 m) | R58: 2 year | S58: 56 | T58: 40 | U58: 1.65 | V58: 0 | W58: 5 | X58: 180 | Y58: 110 | Z58: 90 | AA58: 40 | AB58: 40 | AC58: Apply all the fertilizer at a distance of 45 cm from trunk around the tree in a trench of 15 cm depth in the month of June-July.
O59: Sapota (7 x 8 m)3 year | Q59: Sapota (7 x 8 m) | R59: 3 year | S59: 56 | T59: 50 | U59: 1.8 | V59: 0 | W59: 5 | X59: 270 | Y59: 165 | Z59: 135 | AA59: 60 | AB59: 60 | AC59: Apply all the fertilizer at a distance of 45 cm from trunk around the tree in a trench of 15 cm depth in the month of June-July.
O60: Sapota (7 x 8 m)4 year | Q60: Sapota (7 x 8 m) | R60: 4 year | S60: 56 | T60: 60 | U60: 1.95 | V60: 0 | W60: 5 | X60: 360 | Y60: 220 | Z60: 180 | AA60: 80 | AB60: 80 | AC60: Apply all the fertilizer at a distance of 45 cm from trunk around the tree in a trench of 15 cm depth in the month of June-July.
O61: Sapota (7 x 8 m)5 year | Q61: Sapota (7 x 8 m) | R61: 5 year | S61: 56 | T61: 70 | U61: 2.1 | V61: 0 | W61: 5 | X61: 450 | Y61: 275 | Z61: 225 | AA61: 100 | AB61: 100 | AC61: Apply full dose of FYM, karanja cake, zinc sulphate, borax, lime, 50 % each of urea, DAP, MOP in June another 50 % urea, DAP, MOP in September.
O62: Sapota (7 x 8 m)6 year | Q62: Sapota (7 x 8 m) | R62: 6 year | S62: 56 | T62: 80 | U62: 2.25 | V62: 0 | W62: 5 | X62: 540 | Y62: 330 | Z62: 270 | AA62: 120 | AB62: 120 | AC62: Apply full dose of FYM, karanja cake, zinc sulphate, borax, lime, 50 % each of urea, DAP, MOP in June another 50 % urea, DAP, MOP in September.
O63: Sapota (7 x 8 m)7 year | Q63: Sapota (7 x 8 m) | R63: 7 year | S63: 56 | T63: 90 | U63: 2.4 | V63: 0 | W63: 5 | X63: 630 | Y63: 385 | Z63: 315 | AA63: 140 | AB63: 140 | AC63: Apply full dose of FYM, karanja cake, zinc sulphate, borax, lime, 50 % each of urea, DAP, MOP in June another 50 % urea, DAP, MOP in September.
O64: Sapota (7 x 8 m)8 year | Q64: Sapota (7 x 8 m) | R64: 8 year | S64: 56 | T64: 100 | U64: 2.55 | V64: 0 | W64: 5 | X64: 720 | Y64: 440 | Z64: 360 | AA64: 160 | AB64: 160 | AC64: Apply full dose of FYM, karanja cake, zinc sulphate, borax, lime, 50 % each of urea, DAP, MOP in June another 50 % urea, DAP, MOP in September.
O65: Sapota (7 x 8 m)9 year | Q65: Sapota (7 x 8 m) | R65: 9 year | S65: 56 | T65: 100 | U65: 3 | V65: 0 | W65: 5 | X65: 810 | Y65: 495 | Z65: 405 | AA65: 180 | AB65: 180 | AC65: Apply full dose of FYM, karanja cake, zinc sulphate, borax, lime, 50 % each of urea, DAP, MOP in June another 50 % urea, DAP, MOP in September.
O66: Sapota (7 x 8 m)10 year | Q66: Sapota (7 x 8 m) | R66: 10 year | S66: 56 | T66: 100 | U66: 4 | V66: 0 | W66: 5 | X66: 900 | Y66: 550 | Z66: 450 | AA66: 200 | AB66: 200 | AC66: Apply recommended dose at a distance of 100 cm from trunk around the tree in a trench of 15 cm depth.
O67: Sapota (7 x 8 m)11 year | Q67: Sapota (7 x 8 m) | R67: 11 year | S67: 56 | T67: 100 | U67: 4 | V67: 0 | W67: 5 | X67: 900 | Y67: 550 | Z67: 450 | AA67: 200 | AB67: 200 | AC67: Apply recommended dose at a distance of 100 cm from trunk around the tree in a trench of 15 cm depth.
O68: Sapota (7 x 8 m)12 year | Q68: Sapota (7 x 8 m) | R68: 12 year | S68: 56 | T68: 100 | U68: 4 | V68: 0 | W68: 5 | X68: 900 | Y68: 550 | Z68: 450 | AA68: 200 | AB68: 200 | AC68: Apply recommended dose at a distance of 100 cm from trunk around the tree in a trench of 15 cm depth.
O69: Sapota (7 x 8 m)13 year | Q69: Sapota (7 x 8 m) | R69: 13 year | S69: 56 | T69: 100 | U69: 4 | V69: 0 | W69: 5 | X69: 900 | Y69: 550 | Z69: 450 | AA69: 200 | AB69: 200 | AC69: Apply recommended dose at a distance of 100 cm from trunk around the tree in a trench of 15 cm depth.
O70: =CONCATENATE(Q70,R70) -> Sapota (7 x 8 m)14 year | Q70: Sapota (7 x 8 m) | R70: 14 year | S70: 56 | T70: 100 | U70: 4 | V70: 0 | W70: 5 | X70: 900 | Y70: 550 | Z70: 450 | AA70: 200 | AB70: 200 | AC70: Apply recommended dose at a distance of 100 cm from trunk around the tree in a trench of 15 cm depth.
O71: Sapota (7 x 8 m)15 year | Q71: Sapota (7 x 8 m) | R71: 15 year | S71: 56 | T71: 100 | U71: 4 | V71: 0 | W71: 5 | X71: 900 | Y71: 550 | Z71: 450 | AA71: 200 | AB71: 200 | AC71: Apply recommended dose at a distance of 100 cm from trunk around the tree in a trench of 15 cm depth.
O72: Sapota (7 x 8 m)16 year | Q72: Sapota (7 x 8 m) | R72: 16 year | S72: 56 | T72: 100 | U72: 4 | V72: 0 | W72: 5 | X72: 900 | Y72: 550 | Z72: 450 | AA72: 200 | AB72: 200 | AC72: Apply recommended dose at a distance of 100 cm from trunk around the tree in a trench of 15 cm depth.
O73: Aonla (8 x 10 m)Planting | Q73: Aonla (8 x 10 m) | R73: Planting | S73: 80 | T73: 30 | U73: 1 | V73: 1 | W73: 5 | X73: 50 | Y73: 50 | Z73: 50 | AA73: 10 | AB73: 10 | AC73: Dig pits size of 90cm x 90cm x 90 cm. Add and mix FYM, neem or karanj cake, bone meal, lime with top soil of dug out pit and fill the pit at the start of rain. After 2-3 rains, plant the saplings with the addition of 50g urea, 50g DAP, 50g MOP, 10 g zinc sulphate, 10 g borax.
O74: Aonla (8 x 10 m)1 year | Q74: Aonla (8 x 10 m) | R74: 1 year | S74: 80 | T74: 30 | U74: 1.5 | V74: 0 | W74: 5 | X74: 175 | Y74: 110 | Z74: 170 | AA74: 20 | AB74: 20 | AC74: Apply all the fertilizer at a distance of 45 cm from trunk around the tree in a trench of 15 cm depth in the month of June-July.
O75: Aonla (8 x 10 m)2 year | Q75: Aonla (8 x 10 m) | R75: 2 year | S75: 80 | T75: 35 | U75: 1.65 | V75: 0 | W75: 5 | X75: 350 | Y75: 220 | Z75: 340 | AA75: 40 | AB75: 40 | AC75: Apply all the fertilizer at a distance of 45 cm from trunk around the tree in a trench of 15 cm depth in the month of June-July.
O76: Aonla (8 x 10 m)3 year | Q76: Aonla (8 x 10 m) | R76: 3 year | S76: 80 | T76: 40 | U76: 1.8 | V76: 0 | W76: 5 | X76: 525 | Y76: 330 | Z76: 510 | AA76: 60 | AB76: 60 | AC76: Apply all the fertilizer at a distance of 45 cm from trunk around the tree in a trench of 15 cm depth in the month of June-July.
O77: Aonla (8 x 10 m)4 year | Q77: Aonla (8 x 10 m) | R77: 4 year | S77: 80 | T77: 45 | U77: 1.95 | V77: 0 | W77: 5 | X77: 700 | Y77: 440 | Z77: 680 | AA77: 80 | AB77: 80 | AC77: Apply all the fertilizer at a distance of 45 cm from trunk around the tree in a trench of 15 cm depth in the month of June-July.
O78: Aonla (8 x 10 m)5 year | Q78: Aonla (8 x 10 m) | R78: 5 year | S78: 80 | T78: 50 | U78: 2.1 | V78: 0 | W78: 5 | X78: 875 | Y78: 550 | Z78: 850 | AA78: 100 | AB78: 100 | AC78: Apply full dose of FYM, DAP, MOP and ½ dose of urea in January-February before flowering one meter away from the trunk in 15cm deep trench and cover with soil. Apply remaining ½ dose of urea in July-August.
O79: Aonla (8 x 10 m)6 year | Q79: Aonla (8 x 10 m) | R79: 6 year | S79: 80 | T79: 55 | U79: 2.25 | V79: 0 | W79: 5 | X79: 1050 | Y79: 660 | Z79: 1020 | AA79: 120 | AB79: 120 | AC79: Apply full dose of FYM, DAP, MOP and ½ dose of urea in January-February before flowering one meter away from the trunk in 15cm deep trench and cover with soil. Apply remaining ½ dose of urea in July-August.
O80: Aonla (8 x 10 m)7 year | Q80: Aonla (8 x 10 m) | R80: 7 year | S80: 80 | T80: 60 | U80: 2.4 | V80: 0 | W80: 5 | X80: 1225 | Y80: 770 | Z80: 1190 | AA80: 140 | AB80: 140 | AC80: Apply full dose of FYM, DAP, MOP and ½ dose of urea in January-February before flowering one meter away from the trunk in 15cm deep trench and cover with soil. Apply remaining ½ dose of urea in July-August.
O81: Aonla (8 x 10 m)8 year | Q81: Aonla (8 x 10 m) | R81: 8 year | S81: 80 | T81: 65 | U81: 2.55 | V81: 0 | W81: 5 | X81: 1400 | Y81: 880 | Z81: 1360 | AA81: 160 | AB81: 160 | AC81: Apply full dose of FYM, DAP, MOP and ½ dose of urea in January-February before flowering one meter away from the trunk in 15cm deep trench and cover with soil. Apply remaining ½ dose of urea in July-August.
O82: Aonla (8 x 10 m)9 year | Q82: Aonla (8 x 10 m) | R82: 9 year | S82: 80 | T82: 70 | U82: 2.7 | V82: 0 | W82: 5 | X82: 1575 | Y82: 990 | Z82: 1530 | AA82: 180 | AB82: 180 | AC82: Apply full dose of FYM, DAP, MOP and ½ dose of urea in January-February before flowering one meter away from the trunk in 15cm deep trench and cover with soil. Apply remaining ½ dose of urea in July-August.
O83: Aonla (8 x 10 m)10 year | Q83: Aonla (8 x 10 m) | R83: 10 year | S83: 80 | T83: 100 | U83: 4 | V83: 0 | W83: 5 | X83: 1750 | Y83: 1100 | Z83: 1700 | AA83: 200 | AB83: 200 | AC83: Apply recommended dose at a distance of 100 cm from trunk around the tree in a trench of 15 cm depth.
O84: Aonla (8 x 10 m)11 year | Q84: Aonla (8 x 10 m) | R84: 11 year | S84: 80 | T84: 100 | U84: 4 | V84: 0 | W84: 5 | X84: 1750 | Y84: 1100 | Z84: 1700 | AA84: 200 | AB84: 200 | AC84: Apply recommended dose at a distance of 100 cm from trunk around the tree in a trench of 15 cm depth.
O85: Aonla (8 x 10 m)12 year | Q85: Aonla (8 x 10 m) | R85: 12 year | S85: 80 | T85: 100 | U85: 4 | V85: 0 | W85: 5 | X85: 1750 | Y85: 1100 | Z85: 1700 | AA85: 200 | AB85: 200 | AC85: Apply recommended dose at a distance of 100 cm from trunk around the tree in a trench of 15 cm depth.
O86: Aonla (8 x 10 m)13 year | Q86: Aonla (8 x 10 m) | R86: 13 year | S86: 80 | T86: 100 | U86: 4 | V86: 0 | W86: 5 | X86: 1750 | Y86: 1100 | Z86: 1700 | AA86: 200 | AB86: 200 | AC86: Apply recommended dose at a distance of 100 cm from trunk around the tree in a trench of 15 cm depth.
O87: Aonla (8 x 10 m)14 year | Q87: Aonla (8 x 10 m) | R87: 14 year | S87: 80 | T87: 100 | U87: 4 | V87: 0 | W87: 5 | X87: 1750 | Y87: 1100 | Z87: 1700 | AA87: 200 | AB87: 200 | AC87: Apply recommended dose at a distance of 100 cm from trunk around the tree in a trench of 15 cm depth.
O88: Aonla (8 x 10 m)15 year | Q88: Aonla (8 x 10 m) | R88: 15 year | S88: 80 | T88: 100 | U88: 4 | V88: 0 | W88: 5 | X88: 1750 | Y88: 1100 | Z88: 1700 | AA88: 200 | AB88: 200 | AC88: Apply recommended dose at a distance of 100 cm from trunk around the tree in a trench of 15 cm depth.
O89: Aonla (8 x 10 m)16 year | Q89: Aonla (8 x 10 m) | R89: 16 year | S89: 80 | T89: 100 | U89: 4 | V89: 0 | W89: 5 | X89: 1750 | Y89: 1100 | Z89: 1700 | AA89: 200 | AB89: 200 | AC89: Apply recommended dose at a distance of 100 cm from trunk around the tree in a trench of 15 cm depth.
O90: Orange (5 x 5 m)Planting | Q90: Orange (5 x 5 m) | R90: Planting | S90: 25 | T90: 30 | U90: 1 | V90: 1 | W90: 5 | X90: 0 | Y90: 100 | Z90: 0 | AA90: 10 | AB90: 10 | AC90: Dig pits of size 60cm x 60cm x 60 cm. add and mix FYM, neem or karanj cake, bone meal, lime with top soil of dug out pit and fill the pit at the start of rain. After 2-3 rains, saplings planted with the add 100g DAP, 10 g zinc sulphate and 10 g borax.
O91: Orange (5 x 5 m)1 year | Q91: Orange (5 x 5 m) | R91: 1 year | S91: 25 | T91: 30 | U91: 1.5 | V91: 0 | W91: 5 | X91: 130 | Y91: 52 | Z91: 60 | AA91: 10 | AB91: 10 | AC91: Apply all the fertilizer at a distance of 45 cm from trunk around the tree in a trench of 15 cm depth in the month of June-July.
O92: Orange (5 x 5 m)2 year | Q92: Orange (5 x 5 m) | R92: 2 year | S92: 25 | T92: 35 | U92: 1.65 | V92: 0 | W92: 5 | X92: 262 | Y92: 104 | Z92: 120 | AA92: 20 | AB92: 20 | AC92: Apply all the fertilizer at a distance of 45 cm from trunk around the tree in a trench of 15 cm depth in the month of June-July.
O93: Orange (5 x 5 m)3 year | Q93: Orange (5 x 5 m) | R93: 3 year | S93: 25 | T93: 40 | U93: 1.8 | V93: 0 | W93: 5 | X93: 394 | Y93: 156 | Z93: 180 | AA93: 30 | AB93: 30 | AC93: Apply all the fertilizer at a distance of 45 cm from trunk around the tree in a trench of 15 cm depth in the month of June-July.
O94: Orange (5 x 5 m)4 year | Q94: Orange (5 x 5 m) | R94: 4 year | S94: 25 | T94: 45 | U94: 1.95 | V94: 0 | W94: 5 | X94: 526 | Y94: 208 | Z94: 240 | AA94: 40 | AB94: 40 | AC94: Apply all the fertilizer at a distance of 45 cm from trunk around the tree in a trench of 15 cm depth in the month of June-July.
O95: Orange (5 x 5 m)5 year | Q95: Orange (5 x 5 m) | R95: 5 year | S95: 25 | T95: 50 | U95: 2.1 | V95: 0 | W95: 5 | X95: 658 | Y95: 260 | Z95: 300 | AA95: 50 | AB95: 50 | AC95: Apply full dose of FYM, DAP, MOP and ½ dose of urea in January-February before flowering one meter away from the trunk in 15cm deep trench and cover with soil. Apply remaining ½ dose of urea in July-August.
O96: Orange (5 x 5 m)6 year | Q96: Orange (5 x 5 m) | R96: 6 year | S96: 25 | T96: 55 | U96: 2.25 | V96: 0 | W96: 5 | X96: 790 | Y96: 312 | Z96: 360 | AA96: 60 | AB96: 60 | AC96: Apply full dose of FYM, DAP, MOP and ½ dose of urea in January-February before flowering one meter away from the trunk in 15cm deep trench and cover with soil. Apply remaining ½ dose of urea in July-August.
O97: Orange (5 x 5 m)7 year | Q97: Orange (5 x 5 m) | R97: 7 year | S97: 25 | T97: 60 | U97: 2.4 | V97: 0 | W97: 5 | X97: 922 | Y97: 364 | Z97: 420 | AA97: 70 | AB97: 70 | AC97: Apply full dose of FYM, DAP, MOP and ½ dose of urea in January-February before flowering one meter away from the trunk in 15cm deep trench and cover with soil. Apply remaining ½ dose of urea in July-August.
O98: Orange (5 x 5 m)8 year | Q98: Orange (5 x 5 m) | R98: 8 year | S98: 25 | T98: 65 | U98: 2.55 | V98: 0 | W98: 5 | X98: 1054 | Y98: 416 | Z98: 480 | AA98: 80 | AB98: 80 | AC98: Apply full dose of FYM, DAP, MOP and ½ dose of urea in January-February before flowering one meter away from the trunk in 15cm deep trench and cover with soil. Apply remaining ½ dose of urea in July-August.
O99: Orange (5 x 5 m)9 year | Q99: Orange (5 x 5 m) | R99: 9 year | S99: 25 | T99: 70 | U99: 2.7 | V99: 0 | W99: 5 | X99: 1186 | Y99: 468 | Z99: 540 | AA99: 90 | AB99: 90 | AC99: Apply full dose of FYM, DAP, MOP and ½ dose of urea in January-February before flowering one meter away from the trunk in 15cm deep trench and cover with soil. Apply remaining ½ dose of urea in July-August.
O100: Orange (5 x 5 m)10 year | Q100: Orange (5 x 5 m) | R100: 10 year | S100: 25 | T100: 100 | U100: 4 | V100: 0 | W100: 5 | X100: 1318 | Y100: 520 | Z100: 600 | AA100: 100 | AB100: 100 | AC100: Apply recommended dose at a distance of 100 cm from trunk around the tree in a trench of 15 cm depth.
O101: Orange (5 x 5 m)11 year | Q101: Orange (5 x 5 m) | R101: 11 year | S101: 25 | T101: 100 | U101: 4 | V101: 0 | W101: 5 | X101: 1318 | Y101: 520 | Z101: 600 | AA101: 100 | AB101: 100 | AC101: Apply recommended dose at a distance of 100 cm from trunk around the tree in a trench of 15 cm depth.
O102: Orange (5 x 5 m)12 year | Q102: Orange (5 x 5 m) | R102: 12 year | S102: 25 | T102: 100 | U102: 4 | V102: 0 | W102: 5 | X102: 1318 | Y102: 520 | Z102: 600 | AA102: 100 | AB102: 100 | AC102: Apply recommended dose at a distance of 100 cm from trunk around the tree in a trench of 15 cm depth.
O103: Orange (5 x 5 m)13 year | Q103: Orange (5 x 5 m) | R103: 13 year | S103: 25 | T103: 100 | U103: 4 | V103: 0 | W103: 5 | X103: 1318 | Y103: 520 | Z103: 600 | AA103: 100 | AB103: 100 | AC103: Apply recommended dose at a distance of 100 cm from trunk around the tree in a trench of 15 cm depth.
O104: Orange (5 x 5 m)14 year | Q104: Orange (5 x 5 m) | R104: 14 year | S104: 25 | T104: 100 | U104: 4 | V104: 0 | W104: 5 | X104: 1318 | Y104: 520 | Z104: 600 | AA104: 100 | AB104: 100 | AC104: Apply recommended dose at a distance of 100 cm from trunk around the tree in a trench of 15 cm depth.
O105: Orange (5 x 5 m)15 year | Q105: Orange (5 x 5 m) | R105: 15 year | S105: 25 | T105: 100 | U105: 4 | V105: 0 | W105: 5 | X105: 1318 | Y105: 520 | Z105: 600 | AA105: 100 | AB105: 100 | AC105: Apply recommended dose at a distance of 100 cm from trunk around the tree in a trench of 15 cm depth.
O106: Orange (5 x 5 m)16 year | Q106: Orange (5 x 5 m) | R106: 16 year | S106: 25 | T106: 100 | U106: 4 | V106: 0 | W106: 5 | X106: 1318 | Y106: 520 | Z106: 600 | AA106: 100 | AB106: 100 | AC106: Apply recommended dose at a distance of 100 cm from trunk around the tree in a trench of 15 cm depth.
O107: Ber (8 x 8m)Planting | Q107: Ber (8 x 8m) | R107: Planting | S107: 64 | T107: 50 | U107: 1 | V107: 1 | W107: 5 | X107: 0 | Y107: 100 | Z107: 0 | AA107: 10 | AB107: 10 | AC107: In each pit size of 60cm x 60cm x 60 cm, add and mix FYM, neem or karanj cake, bone meal, lime with top soil of dug out pit and fill the pit at the start of rain. After 2-3 rains, saplings planted with the add 100g DAP, 10 g zinc sulphate, 10 g borax.
O108: Ber (8 x 8m)1 year | Q108: Ber (8 x 8m) | R108: 1 year | S108: 64 | T108: 10 | U108: 1.5 | V108: 0 | W108: 5 | X108: 173 | Y108: 122 | Z108: 80 | AA108: 10 | AB108: 10 | AC108: Apply all the fertilizer at a distance of 45 cm from trunk around the tree in a trench of 15 cm depth in the month of June-July.
O109: Ber (8 x 8m)2 year | Q109: Ber (8 x 8m) | R109: 2 year | S109: 64 | T109: 20 | U109: 1.5 | V109: 0 | W109: 5 | X109: 346 | Y109: 244 | Z109: 160 | AA109: 20 | AB109: 20 | AC109: Apply all the fertilizer at a distance of 45 cm from trunk around the tree in a trench of 15 cm depth in the month of June-July.
O110: Ber (8 x 8m)3 year | Q110: Ber (8 x 8m) | R110: 3 year | S110: 64 | T110: 25 | U110: 1.5 | V110: 0 | W110: 5 | X110: 870 | Y110: 590 | Z110: 200 | AA110: 30 | AB110: 30 | AC110: Apply full dose of FYM, ½ dose of urea, DAP, MOP, zinc sulphate, borax in the month of June-July at a distance of 100 cm from trunk around the tree in a trench of 15 cm depth. Another ½ dose of urea in November-December.
O111: Ber (8 x 8m)4 year | Q111: Ber (8 x 8m) | R111: 4 year | S111: 64 | T111: 25 | U111: 1.5 | V111: 0 | W111: 5 | X111: 870 | Y111: 590 | Z111: 200 | AA111: 30 | AB111: 30 | AC111: Apply full dose of FYM, ½ dose of urea, DAP, MOP, zinc sulphate, borax in the month of June-July at a distance of 100 cm from trunk around the tree in a trench of 15 cm depth. Another ½ dose of urea in November-December.
O112: Ber (8 x 8m)5 year | Q112: Ber (8 x 8m) | R112: 5 year | S112: 64 | T112: 30 | U112: 3 | V112: 0 | W112: 5 | X112: 962 | Y112: 610 | Z112: 250 | AA112: 50 | AB112: 50 | AC112: Apply full dose of FYM, ½ dose of urea, DAP, MOP, zinc sulphate, borax in the month of June-July at a distance of 100 cm from trunk around the tree in a trench of 15 cm depth. Another ½ dose of urea in November-December.
O113: Ber (8 x 8m)6 year | Q113: Ber (8 x 8m) | R113: 6 year | S113: 64 | T113: 30 | U113: 3 | V113: 0 | W113: 5 | X113: 962 | Y113: 610 | Z113: 250 | AA113: 50 | AB113: 50 | AC113: Apply full dose of FYM, ½ dose of urea, DAP, MOP, zinc sulphate, borax in the month of June-July at a distance of 100 cm from trunk around the tree in a trench of 15 cm depth. Another ½ dose of urea in November-December.
O114: Ber (8 x 8m)7 year | Q114: Ber (8 x 8m) | R114: 7 year | S114: 64 | T114: 30 | U114: 3 | V114: 0 | W114: 5 | X114: 962 | Y114: 610 | Z114: 250 | AA114: 50 | AB114: 50 | AC114: Apply full dose of FYM, ½ dose of urea, DAP, MOP, zinc sulphate, borax in the month of June-July at a distance of 100 cm from trunk around the tree in a trench of 15 cm depth. Another ½ dose of urea in November-December.
O115: Ber (8 x 8m)8 year | Q115: Ber (8 x 8m) | R115: 8 year | S115: 64 | T115: 30 | U115: 3 | V115: 0 | W115: 5 | X115: 962 | Y115: 610 | Z115: 250 | AA115: 50 | AB115: 50 | AC115: Apply full dose of FYM, ½ dose of urea, DAP, MOP, zinc sulphate, borax in the month of June-July at a distance of 100 cm from trunk around the tree in a trench of 15 cm depth. Another ½ dose of urea in November-December.
O116: Ber (8 x 8m)9 year | Q116: Ber (8 x 8m) | R116: 9 year | S116: 64 | T116: 30 | U116: 3 | V116: 0 | W116: 5 | X116: 962 | Y116: 610 | Z116: 250 | AA116: 50 | AB116: 50 | AC116: Apply full dose of FYM, ½ dose of urea, DAP, MOP, zinc sulphate, borax in the month of June-July at a distance of 100 cm from trunk around the tree in a trench of 15 cm depth. Another ½ dose of urea in November-December.
O117: Ber (8 x 8m)10 year | Q117: Ber (8 x 8m) | R117: 10 year | S117: 64 | T117: 30 | U117: 3 | V117: 0 | W117: 5 | X117: 962 | Y117: 610 | Z117: 250 | AA117: 50 | AB117: 50 | AC117: Apply full dose of FYM, ½ dose of urea, DAP, MOP, zinc sulphate, borax in the month of June-July at a distance of 100 cm from trunk around the tree in a trench of 15 cm depth. Another ½ dose of urea in November-December.
O118: Ber (8 x 8m)11 year | Q118: Ber (8 x 8m) | R118: 11 year | S118: 64 | T118: 30 | U118: 3 | V118: 0 | W118: 5 | X118: 962 | Y118: 610 | Z118: 250 | AA118: 50 | AB118: 50 | AC118: Apply full dose of FYM, ½ dose of urea, DAP, MOP, zinc sulphate, borax in the month of June-July at a distance of 100 cm from trunk around the tree in a trench of 15 cm depth. Another ½ dose of urea in November-December.
O119: Ber (8 x 8m)12 year | Q119: Ber (8 x 8m) | R119: 12 year | S119: 64 | T119: 30 | U119: 3 | V119: 0 | W119: 5 | X119: 962 | Y119: 610 | Z119: 250 | AA119: 50 | AB119: 50 | AC119: Apply full dose of FYM, ½ dose of urea, DAP, MOP, zinc sulphate, borax in the month of June-July at a distance of 100 cm from trunk around the tree in a trench of 15 cm depth. Another ½ dose of urea in November-December.
O120: Ber (8 x 8m)13 year | Q120: Ber (8 x 8m) | R120: 13 year | S120: 64 | T120: 30 | U120: 3 | V120: 0 | W120: 5 | X120: 962 | Y120: 610 | Z120: 250 | AA120: 50 | AB120: 50 | AC120: Apply full dose of FYM, ½ dose of urea, DAP, MOP, zinc sulphate, borax in the month of June-July at a distance of 100 cm from trunk around the tree in a trench of 15 cm depth. Another ½ dose of urea in November-December.
O121: Ber (8 x 8m)14 year | Q121: Ber (8 x 8m) | R121: 14 year | S121: 64 | T121: 30 | U121: 3 | V121: 0 | W121: 5 | X121: 962 | Y121: 610 | Z121: 250 | AA121: 50 | AB121: 50 | AC121: Apply full dose of FYM, ½ dose of urea, DAP, MOP, zinc sulphate, borax in the month of June-July at a distance of 100 cm from trunk around the tree in a trench of 15 cm depth. Another ½ dose of urea in November-December.
O122: Ber (8 x 8m)15 year | Q122: Ber (8 x 8m) | R122: 15 year | S122: 64 | T122: 30 | U122: 3 | V122: 0 | W122: 5 | X122: 962 | Y122: 610 | Z122: 250 | AA122: 50 | AB122: 50 | AC122: Apply full dose of FYM, ½ dose of urea, DAP, MOP, zinc sulphate, borax in the month of June-July at a distance of 100 cm from trunk around the tree in a trench of 15 cm depth. Another ½ dose of urea in November-December.
O123: Ber (8 x 8m)16 year | Q123: Ber (8 x 8m) | R123: 16 year | S123: 64 | T123: 30 | U123: 3 | V123: 0 | W123: 5 | X123: 962 | Y123: 610 | Z123: 250 | AA123: 50 | AB123: 50 | AC123: Apply full dose of FYM, ½ dose of urea, DAP, MOP, zinc sulphate, borax in the month of June-July at a distance of 100 cm from trunk around the tree in a trench of 15 cm depth. Another ½ dose of urea in November-December.
O124: Peach (5 x 5m)Planting | Q124: Peach (5 x 5m) | R124: Planting | S124: 25 | T124: 30 | U124: 1 | V124: 1 | W124: 5 | X124: 120 | Y124: 87 | Z124: 67 | AA124: 10 | AB124: 10 | AC124: Dig pits of size 90cm x 90cm x 90 cm, add and mix FYM, neem or karanj cake, bone meal, lime with top soil of dug out pit and fill the pit at the start of rain. After 2-3 rains, plant the saplings with addition of recommended does of urea, DAP, MOP, zinc sulphate and borax.
O125: Peach (5 x 5m)1 year | Q125: Peach (5 x 5m) | R125: 1 year | S125: 25 | T125: 10 | U125: 1.5 | V125: 0 | W125: 5 | X125: 120 | Y125: 87 | Z125: 67 | AA125: 10 | AB125: 10 | AC125: Apply all the fertilizer at a distance of 45 cm from trunk around the tree in a trench of 15 cm depth in the month of June-July.
O126: Peach (5 x 5m)2 year | Q126: Peach (5 x 5m) | R126: 2 year | S126: 25 | T126: 20 | U126: 1.65 | V126: 0 | W126: 5 | X126: 240 | Y126: 174 | Z126: 134 | AA126: 20 | AB126: 20 | AC126: Apply all the fertilizer at a distance of 45 cm from trunk around the tree in a trench of 15 cm depth in the month of June-July.
O127: Peach (5 x 5m)3 year | Q127: Peach (5 x 5m) | R127: 3 year | S127: 25 | T127: 30 | U127: 1.8 | V127: 0 | W127: 5 | X127: 360 | Y127: 261 | Z127: 201 | AA127: 30 | AB127: 30 | AC127: Apply all the fertilizer at a distance of 45 cm from trunk around the tree in a trench of 15 cm depth in the month of June-July.
O128: Peach (5 x 5m)4 year | Q128: Peach (5 x 5m) | R128: 4 year | S128: 25 | T128: 40 | U128: 1.95 | V128: 0 | W128: 5 | X128: 480 | Y128: 348 | Z128: 268 | AA128: 40 | AB128: 40 | AC128: Apply all the fertilizer at a distance of 45 cm from trunk around the tree in a trench of 15 cm depth in the month of June-July.
O129: Peach (5 x 5m)5 year | Q129: Peach (5 x 5m) | R129: 5 year | S129: 25 | T129: 50 | U129: 2.1 | V129: 0 | W129: 5 | X129: 600 | Y129: 435 | Z129: 335 | AA129: 50 | AB129: 50 | AC129: Apply full dose of FYM, ½ dose of urea, DAP, MOP, zinc sulphate, borax in the month of June-July at a distance of 100 cm from trunk around the tree in a trench of 15 cm depth. Another ½ dose of urea in November-December.
O130: Peach (5 x 5m)6 year | Q130: Peach (5 x 5m) | R130: 6 year | S130: 25 | T130: 60 | U130: 3 | V130: 0 | W130: 5 | X130: 720 | Y130: 522 | Z130: 402 | AA130: 60 | AB130: 60 | AC130: Apply full dose of FYM, ½ dose of urea, DAP, MOP, zinc sulphate, borax in the month of June-July at a distance of 100 cm from trunk around the tree in a trench of 15 cm depth. Another ½ dose of urea in November-December.
O131: Peach (5 x 5m)7 year | Q131: Peach (5 x 5m) | R131: 7 year | S131: 25 | T131: 60 | U131: 3 | V131: 0 | W131: 5 | X131: 720 | Y131: 522 | Z131: 402 | AA131: 60 | AB131: 60 | AC131: Apply full dose of FYM, ½ dose of urea, DAP, MOP, zinc sulphate, borax in the month of June-July at a distance of 100 cm from trunk around the tree in a trench of 15 cm depth. Another ½ dose of urea in November-December.
O132: Peach (5 x 5m)8 year | Q132: Peach (5 x 5m) | R132: 8 year | S132: 25 | T132: 60 | U132: 3 | V132: 0 | W132: 5 | X132: 720 | Y132: 522 | Z132: 402 | AA132: 60 | AB132: 60 | AC132: Apply full dose of FYM, ½ dose of urea, DAP, MOP, zinc sulphate, borax in the month of June-July at a distance of 100 cm from trunk around the tree in a trench of 15 cm depth. Another ½ dose of urea in November-December.
O133: Peach (5 x 5m)9 year | Q133: Peach (5 x 5m) | R133: 9 year | S133: 25 | T133: 60 | U133: 3 | V133: 0 | W133: 5 | X133: 720 | Y133: 522 | Z133: 402 | AA133: 60 | AB133: 60 | AC133: Apply full dose of FYM, ½ dose of urea, DAP, MOP, zinc sulphate, borax in the month of June-July at a distance of 100 cm from trunk around the tree in a trench of 15 cm depth. Another ½ dose of urea in November-December.
O134: =CONCATENATE(Q134,R134) -> Peach (5 x 5m)10 year | Q134: Peach (5 x 5m) | R134: 10 year | S134: 25 | T134: 60 | U134: 3 | V134: 0 | W134: 5 | X134: 720 | Y134: 522 | Z134: 402 | AA134: 60 | AB134: 60 | AC134: Apply full dose of FYM, ½ dose of urea, DAP, MOP, zinc sulphate, borax in the month of June-July at a distance of 100 cm from trunk around the tree in a trench of 15 cm depth. Another ½ dose of urea in November-December.
O135: Peach (5 x 5m)11 year | Q135: Peach (5 x 5m) | R135: 11 year | S135: 25 | T135: 60 | U135: 3 | V135: 0 | W135: 5 | X135: 720 | Y135: 522 | Z135: 402 | AA135: 60 | AB135: 60 | AC135: Apply full dose of FYM, ½ dose of urea, DAP, MOP, zinc sulphate, borax in the month of June-July at a distance of 100 cm from trunk around the tree in a trench of 15 cm depth. Another ½ dose of urea in November-December.
O136: Peach (5 x 5m)12 year | Q136: Peach (5 x 5m) | R136: 12 year | S136: 25 | T136: 60 | U136: 3 | V136: 0 | W136: 5 | X136: 720 | Y136: 522 | Z136: 402 | AA136: 60 | AB136: 60 | AC136: Apply full dose of FYM, ½ dose of urea, DAP, MOP, zinc sulphate, borax in the month of June-July at a distance of 100 cm from trunk around the tree in a trench of 15 cm depth. Another ½ dose of urea in November-December.
O137: Peach (5 x 5m)13 year | Q137: Peach (5 x 5m) | R137: 13 year | S137: 25 | T137: 60 | U137: 3 | V137: 0 | W137: 5 | X137: 720 | Y137: 522 | Z137: 402 | AA137: 60 | AB137: 60 | AC137: Apply full dose of FYM, ½ dose of urea, DAP, MOP, zinc sulphate, borax in the month of June-July at a distance of 100 cm from trunk around the tree in a trench of 15 cm depth. Another ½ dose of urea in November-December.
O138: Peach (5 x 5m)14 year | Q138: Peach (5 x 5m) | R138: 14 year | S138: 25 | T138: 60 | U138: 3 | V138: 0 | W138: 5 | X138: 720 | Y138: 522 | Z138: 402 | AA138: 60 | AB138: 60 | AC138: Apply full dose of FYM, ½ dose of urea, DAP, MOP, zinc sulphate, borax in the month of June-July at a distance of 100 cm from trunk around the tree in a trench of 15 cm depth. Another ½ dose of urea in November-December.
O139: Peach (5 x 5m)15 year | Q139: Peach (5 x 5m) | R139: 15 year | S139: 25 | T139: 60 | U139: 3 | V139: 0 | W139: 5 | X139: 720 | Y139: 522 | Z139: 402 | AA139: 60 | AB139: 60 | AC139: Apply full dose of FYM, ½ dose of urea, DAP, MOP, zinc sulphate, borax in the month of June-July at a distance of 100 cm from trunk around the tree in a trench of 15 cm depth. Another ½ dose of urea in November-December.
O140: Peach (5 x 5m)16 year | Q140: Peach (5 x 5m) | R140: 16 year | S140: 25 | T140: 60 | U140: 3 | V140: 0 | W140: 5 | X140: 720 | Y140: 522 | Z140: 402 | AA140: 60 | AB140: 60 | AC140: Apply full dose of FYM, ½ dose of urea, DAP, MOP, zinc sulphate, borax in the month of June-July at a distance of 100 cm from trunk around the tree in a trench of 15 cm depth. Another ½ dose of urea in November-December.
O141: Cashew (7 x 8m)Planting | Q141: Cashew (7 x 8m) | R141: Planting | S141: 56 | T141: 15 | U141: 1 | V141: 1 | W141: 5 | X141: 0 | Y141: 100 | Z141: 0 | AA141: 10 | AB141: 10 | AC141: Dig pits of size 90cm x 90cm x 90 cm, add and mix FYM, neem or karanj cake, bone meal, lime with top soil of dug out pit and fill the pit at the start of rain. After 2-3 rains, saplings planted with the add 100g DAP, 10 g zinc sulphate, 10 g borax.
O142: Cashew (7 x 8m)1 year | Q142: Cashew (7 x 8m) | R142: 1 year | S142: 56 | T142: 15 | U142: 1.5 | V142: 0 | W142: 5 | X142: 170 | Y142: 80 | Z142: 70 | AA142: 10 | AB142: 10 | AC142: Apply all the fertilizer at a distance of 45 cm from trunk around the tree in a trench of 15 cm depth in the month of June-July.
O143: Cashew (7 x 8m)2 year | Q143: Cashew (7 x 8m) | R143: 2 year | S143: 56 | T143: 30 | U143: 2.5 | V143: 0 | W143: 5 | X143: 340 | Y143: 160 | Z143: 140 | AA143: 20 | AB143: 20 | AC143: Apply all the fertilizer at a distance of 45 cm from trunk around the tree in a trench of 15 cm depth in the month of June-July.
O144: Cashew (7 x 8m)3 year | Q144: Cashew (7 x 8m) | R144: 3 year | S144: 56 | T144: 40 | U144: 3 | V144: 0 | W144: 5 | X144: 910 | Y144: 240 | Z144: 200 | AA144: 50 | AB144: 50 | AC144: Apply full dose of FYM, ½ dose of urea, DAP, MOP, zinc sulphate, borax in the month of May-June at a distance of 45 cm from trunk around the tree in a trench of 15 cm depth. Apply remaining ½ dose of urea in September-October.
O145: Cashew (7 x 8m)4 year | Q145: Cashew (7 x 8m) | R145: 4 year | S145: 56 | T145: 40 | U145: 3 | V145: 0 | W145: 5 | X145: 910 | Y145: 240 | Z145: 200 | AA145: 50 | AB145: 50 | AC145: Apply full dose of FYM, ½ dose of urea, DAP, MOP, zinc sulphate, borax in the month of May-June at a distance of 45 cm from trunk around the tree in a trench of 15 cm depth. Apply remaining ½ dose of urea in September-October.
O146: Cashew (7 x 8m)5 year | Q146: Cashew (7 x 8m) | R146: 5 year | S146: 56 | T146: 40 | U146: 3 | V146: 0 | W146: 5 | X146: 910 | Y146: 240 | Z146: 200 | AA146: 50 | AB146: 50 | AC146: Apply full dose of FYM, ½ dose of urea, DAP, MOP, zinc sulphate, borax in the month of May-June at a distance of 45 cm from trunk around the tree in a trench of 15 cm depth. Apply remaining ½ dose of urea in September-October.
O147: Cashew (7 x 8m)6 year | Q147: Cashew (7 x 8m) | R147: 6 year | S147: 56 | T147: 40 | U147: 3 | V147: 0 | W147: 5 | X147: 910 | Y147: 240 | Z147: 200 | AA147: 50 | AB147: 50 | AC147: Apply full dose of FYM, ½ dose of urea, DAP, MOP, zinc sulphate, borax in the month of May-June at a distance of 45 cm from trunk around the tree in a trench of 15 cm depth. Apply remaining ½ dose of urea in September-October.
O148: Cashew (7 x 8m)7 year | Q148: Cashew (7 x 8m) | R148: 7 year | S148: 56 | T148: 40 | U148: 3 | V148: 0 | W148: 5 | X148: 910 | Y148: 240 | Z148: 200 | AA148: 50 | AB148: 50 | AC148: Apply full dose of FYM, ½ dose of urea, DAP, MOP, zinc sulphate, borax in the month of May-June at a distance of 45 cm from trunk around the tree in a trench of 15 cm depth. Apply remaining ½ dose of urea in September-October.
O149: Cashew (7 x 8m)8 year | Q149: Cashew (7 x 8m) | R149: 8 year | S149: 56 | T149: 40 | U149: 3 | V149: 0 | W149: 5 | X149: 910 | Y149: 240 | Z149: 200 | AA149: 50 | AB149: 50 | AC149: Apply full dose of FYM, ½ dose of urea, DAP, MOP, zinc sulphate, borax in the month of May-June at a distance of 45 cm from trunk around the tree in a trench of 15 cm depth. Apply remaining ½ dose of urea in September-October.
O150: Cashew (7 x 8m)9 year | Q150: Cashew (7 x 8m) | R150: 9 year | S150: 56 | T150: 40 | U150: 3 | V150: 0 | W150: 5 | X150: 910 | Y150: 240 | Z150: 200 | AA150: 50 | AB150: 50 | AC150: Apply full dose of FYM, ½ dose of urea, DAP, MOP, zinc sulphate, borax in the month of May-June at a distance of 45 cm from trunk around the tree in a trench of 15 cm depth. Apply remaining ½ dose of urea in September-October.
O151: Cashew (7 x 8m)10 year | Q151: Cashew (7 x 8m) | R151: 10 year | S151: 56 | T151: 40 | U151: 3 | V151: 0 | W151: 5 | X151: 910 | Y151: 240 | Z151: 200 | AA151: 50 | AB151: 50 | AC151: Apply full dose of FYM, ½ dose of urea, DAP, MOP, zinc sulphate, borax in the month of May-June at a distance of 45 cm from trunk around the tree in a trench of 15 cm depth. Apply remaining ½ dose of urea in September-October.
O152: Cashew (7 x 8m)11 year | Q152: Cashew (7 x 8m) | R152: 11 year | S152: 56 | T152: 40 | U152: 3 | V152: 0 | W152: 5 | X152: 910 | Y152: 240 | Z152: 200 | AA152: 50 | AB152: 50 | AC152: Apply full dose of FYM, ½ dose of urea, DAP, MOP, zinc sulphate, borax in the month of May-June at a distance of 45 cm from trunk around the tree in a trench of 15 cm depth. Apply remaining ½ dose of urea in September-October.
O153: Cashew (7 x 8m)12 year | Q153: Cashew (7 x 8m) | R153: 12 year | S153: 56 | T153: 40 | U153: 3 | V153: 0 | W153: 5 | X153: 910 | Y153: 240 | Z153: 200 | AA153: 50 | AB153: 50 | AC153: Apply full dose of FYM, ½ dose of urea, DAP, MOP, zinc sulphate, borax in the month of May-June at a distance of 45 cm from trunk around the tree in a trench of 15 cm depth. Apply remaining ½ dose of urea in September-October.
O154: Cashew (7 x 8m)13 year | Q154: Cashew (7 x 8m) | R154: 13 year | S154: 56 | T154: 40 | U154: 3 | V154: 0 | W154: 5 | X154: 910 | Y154: 240 | Z154: 200 | AA154: 50 | AB154: 50 | AC154: Apply full dose of FYM, ½ dose of urea, DAP, MOP, zinc sulphate, borax in the month of May-June at a distance of 45 cm from trunk around the tree in a trench of 15 cm depth. Apply remaining ½ dose of urea in September-October.
O155: Cashew (7 x 8m)14 year | Q155: Cashew (7 x 8m) | R155: 14 year | S155: 56 | T155: 40 | U155: 3 | V155: 0 | W155: 5 | X155: 910 | Y155: 240 | Z155: 200 | AA155: 50 | AB155: 50 | AC155: Apply full dose of FYM, ½ dose of urea, DAP, MOP, zinc sulphate, borax in the month of May-June at a distance of 45 cm from trunk around the tree in a trench of 15 cm depth. Apply remaining ½ dose of urea in September-October.
O156: Cashew (7 x 8m)15 year | Q156: Cashew (7 x 8m) | R156: 15 year | S156: 56 | T156: 40 | U156: 3 | V156: 0 | W156: 5 | X156: 910 | Y156: 240 | Z156: 200 | AA156: 50 | AB156: 50 | AC156: Apply full dose of FYM, ½ dose of urea, DAP, MOP, zinc sulphate, borax in the month of May-June at a distance of 45 cm from trunk around the tree in a trench of 15 cm depth. Apply remaining ½ dose of urea in September-October.
O157: Cashew (7 x 8m)16 year | Q157: Cashew (7 x 8m) | R157: 16 year | S157: 56 | T157: 40 | U157: 3 | V157: 0 | W157: 5 | X157: 910 | Y157: 240 | Z157: 200 | AA157: 50 | AB157: 50 | AC157: Apply full dose of FYM, ½ dose of urea, DAP, MOP, zinc sulphate, borax in the month of May-June at a distance of 45 cm from trunk around the tree in a trench of 15 cm depth. Apply remaining ½ dose of urea in September-October.

Sheet FertiSel
C2: Fertilizer Source Selection
J3: Rice-Midland | L3: Fertilizer requirement | U3: N | V3: P | W3: K | X3: Zn | Y3: B | Z3: S | AA3: Lime | AB3: Cost/kg
L4: N | M4: P | N4: K | O4: ZnSo4 | P4: B | Q4: S | R4: Lime
C5: NPK complex | K5: Req Nutr | L5: =IF(STRCheck!I9=1,SoilData!M6,SoilData!M5) -> 100 | M5: =IF(STRCheck!I9=1,SoilData!N6,SoilData!N5) -> 50 | N5: =IF(STRCheck!I9=1,SoilData!O6,SoilData!O5) -> 25 | O5: =IF(STRCheck!I9=1,SoilData!P6,SoilData!P5) -> 6.5625 | P5: =IF(STRCheck!I9=1,SoilData!Q6,SoilData!Q5) -> 1.96875 | Q5: =IF(STRCheck!I9=1,SoilData!R6,SoilData!R5) -> 0 | R5: =IF(STRCheck!I9=1,SoilData!S6,SoilData!S5) -> 400 | T5: NPK fertilizers
I6: 2 | J6: NPK | K6: 1 | L6: =M6*U6/100 -> 44.83322042 | M6: =M5/(V6/100) -> 249.0734468 | N6: =M6*W6/100 -> 0 | S6: 1 | T6: Diammonium Phosphate | U6: 18 | V6: =46*0.4364 -> 20.0744 | W6: 0 | X6: 0 | Y6: 0 | AA6: 0 | AB6: =1100/50 -> 22
C7: Nitrogenous | K7: 2 | L7: =M7*U7/100 -> 42.96516957 | M7: =M5/(V7/100) -> 358.0430797 | N7: =M7*W7/100 -> 47.54812099 | S7: 2 | T7: Complex 12:32:16 | U7: 12 | V7: =32*0.4364 -> 13.9648 | W7: =16*0.83 -> 13.28 | X7: 0 | Y7: 0 | AA7: 0 | AB7: =1150/50 -> 23
K8: 3 | L8: =M8*U8/100 -> 46.02235371 | M8: =M5/(V8/100) -> 328.731098 | N8: =M8*W8/100 -> 38.19855358 | S8: 3 | T8: Complex 14:35:14 | U8: 14 | V8: 15.21 | W8: 11.62 | X8: 0 | Y8: 0 | AA8: 0 | AB8: =1165/50 -> 23.3
C9: Potassic | K9: 4 | L9: 0 | M9: =M5/(V9/100) -> 719.0520018 | N9: 0 | Q9: =M9*(Z9/100) -> 79.0957202 | S9: 4 | T9: Single Super Phosphate | U9: 0 | V9: =16*0.4346 -> 6.9536 | W9: 0 | Z9: 11 | AB9: =428/50 -> 8.56
K10: Apply | L10: =LOOKUP(I6,K6:K9,L6:L9) -> 42.96516957 | M10: =LOOKUP(I6,K6:K9,M6:M9) -> 358.0430797 | N10: =LOOKUP(I6,K6:K9,N6:N9) -> 47.54812099 | O10: =LOOKUP(I6,K6:K9,O6:O9) -> 0 | P10: =LOOKUP(L6,N6:N9,P6:P9) -> 0 | Q10: =LOOKUP(I6,K6:K9,Q6:Q9) -> 0 | R10: =LOOKUP(I6,K6:K9,R6:R9) -> 0
C11: Zinc | I11: 1 | J11: Nitrogenous | K11: Apply | L11: =IF((L5-L10)/(U12/100)<0,0,(L5-L10)/(U12/100)) -> 123.9887618 | T11: Nitrogenous Fertilizer
I12: 1 | J12: Potassic | K12: 1 | N12: =IF((N5-N10)/(W14/100)<0,0,(N5-N10)/(W14/100)) -> 0 | S12: 1 | T12: Urea | U12: 46 | V12: 0 | W12: 0 | X12: 0 | Y12: 0 | AA12: 0 | AB12: =284/50 -> 5.68
C13: Boron | K13: 2 | N13: =IF((N5-N10)/(W15/100)<0,0,(N5-N10)/(W15/100)) -> 0 | Q13: =N13*(Z15/100) -> 0 | T13: Potassic fertilizer
K14: Apply | N14: =IF(LOOKUP(I12,K12:K13,N12:N13)<0,0,(LOOKUP(I12,K12:K13,N12:N13))) -> 0 | Q14: =IF(LOOKUP(I12,K12:K13,Q12:Q13)<0,0,(LOOKUP(I12,K12:K13,Q12:Q13))) -> 0 | S14: 1 | T14: Murate of Potassium | U14: 0 | V14: 0 | W14: =60*0.83 -> 49.8 | X14: 0 | Y14: 0 | AA14: 0 | AB14: =550/50 -> 11
C15: Sulphur | I15: 2 | J15: Zink | K15: 1 | O15: =O5/(X18/100) -> 31.25 | Q15: =O15*Z18/100 -> 3.125 | S15: 2 | T15: Sulphate of potash | U15: 0 | V15: 0 | W15: =50*0.83 -> 41.5 | X15: 0 | Y15: 0 | Z15: 18 | AA15: 0 | AB15: =2900/50 -> 58
K16: 2 | O16: =O5/(X19/100) -> 54.6875
K17: Apply | O17: =IF(I15=1,O15,O16) -> 54.6875 | T17: Zinc fertilizer
I18: 2 | J18: Boron | K18: 1 | P18: =P5/(Y21/100) -> 18.75 | S18: 1 | T18: Zinc Sulphate | U18: 0 | V18: 0 | W18: 0 | X18: 21 | Y18: 0 | Z18: =10 -> 10 | AA18: 0 | AB18: =2250/50 -> 45
K19: 2 | P19: =P5/(Y22/100) -> 10.36184211 | S19: 2 | T19: Zinc (Chelated) | U19: 0 | V19: 0 | W19: 0 | X19: 12 | Y19: 0 | Z19: 0 | AA19: 0 | AB19: 500
K20: 3 | P20: =P5/(Y23/100) -> 9.84375 | T20: Boron Fertilizer
K21: Apply | P21: =LOOKUP(I18,K18:K20,P18:P20) -> 10.36184211 | S21: 1 | T21: Borax | U21: 0 | V21: 0 | W21: 0 | X21: 0 | Y21: 10.5 | AA21: 0 | AB21: 40
I22: 2 | J22: Sulphur | K22: 1 | Q22: =IF((Q5-Q10-Q14-Q17)/(Z25/100)<0,0,(Q5-Q10-Q14-Q17)/(Z25/100)) -> 0 | S22: 2 | T22: Solubore | U22: 0 | V22: 0 | W22: 0 | X22: 0 | Y22: 19 | AA22: 0 | AB22: 100
K23: 2 | Q23: =IF((Q5-Q10-Q14-Q17)/(Z26/100)<0,0,(Q5-Q10-Q14-Q17)/(Z26/100)) -> 0 | S23: 3 | T23: Boron | U23: 0 | V23: 0 | W23: 0 | X23: 0 | Y23: 20 | AA23: 0 | AB23: 100
K24: Apply | Q24: =LOOKUP(I22,K22:K23,Q22:Q23) -> 0 | T24: Suphur Fertilizer
S25: 1 | T25: Elemental Sulphur | U25: 0 | V25: 0 | W25: 0 | X25: 0 | Y25: 0 | Z25: 90 | AB25: =800/5 -> 160
S26: 2 | T26: Ammonium Sulphate | U26: 15 | V26: 0 | W26: 0 | X26: 0 | Y26: 0 | Z26: 24 | AB26: =675/5 -> 135
J27: Selected Fertilizers | T27: Lime | AB27: 5
J28: FYM/Compost | L28: =AB28 -> 3 | T28: FYP/Compost | AB28: 3
J29: Vermicompost | L29: =AB31 -> 7 | T29: Neem/Karanj cake | AB29: 20
J30: =LOOKUP(I6,S6:S9,T6:T9) -> Complex 12:32:16 | L30: =LOOKUP(I6,S6:S9,AB6:AB9) -> 23 | T30: Bone meal | AB30: 25
J31: =LOOKUP(I11,S12,T12) -> Urea | L31: =AB12 -> 5.68 | T31: Vermicompost | AB31: 7
J32: =LOOKUP(I12,S14:S15,T14:T15) -> Murate of Potassium | L32: =LOOKUP(I12,S14:S15,AB14:AB15) -> 11
J33: =LOOKUP(I15,S18:S19,T18:T19) -> Zinc (Chelated) | L33: =LOOKUP(I15,S18:S19,AB18:AB19) -> 500
J34: =LOOKUP(I18,S21:S23,T21:T23) -> Solubore | L34: =LOOKUP(I18,S21:S23,AB21:AB23) -> 100 | T34: Fertilizer | U34: Price, Rs/kg
J35: =LOOKUP(I22,S25:S26,T25:T26) -> Ammonium Sulphate | L35: =LOOKUP(I22,S25:S26,AB25:AB26) -> 135 | T35: Diammonium Phosphate | U35: 22
J36: =R4 -> Lime | L36: =AB27 -> 5 | T36: 12:32:16 | U36: 23
T37: 14:35:14 | U37: 23.3
T38: Single Super Phosphate | U38: 8.56
T39: Urea | U39: 5.68
T40: Murate of Potassium | U40: 11
T41: Sulphate of potash | U41: 58
T42: Zinc Sulphate | U42: 45
T43: Zinc (Chelated) | U43: 500
T44: Borax | U44: 40
T45: Solubore | U45: 100
T46: Boron | U46: 100
T47: Elemental Sulphur
T48: Ammonium Sulphate
T49: Lime | U49: 5
T50: FYP/Compost | U50: 3
T51: Neem/Karanj cake | U51: 20
T52: Bone meal | U52: 25
T53: Vermicompost | U53: 7

Sheet FertRiq
C2: Fertilzer Recommendation Report
K3: Farmers area | L3: 120 | M3: decimal
C5: Crop: | D5: =FertiSel!J3 -> Rice-Midland | F5: Area (ha): | G5: =L3/250 -> 0.48 | K5: 0 | L5: 50 | M5: 25 | N5: 25
C7: Fertilizer | D7: Quantity | F7: Unit | G7: Cost, Rs | K7: =(D15)*K5/100 -> 0 | L7: =(D15)*L5/100 -> 29.75730283 | M7: =(D15)*M5/100 -> 14.87865142 | N7: =(D15)*N5/100 -> 14.87865142
C9: =FertiSel!J28 -> FYM/Compost | D9: =SoilData!K5/250*FertRiq!L3 -> 2.4 | F9: Ton | G9: =D9*1000*FertiSel!L28 -> 7200
C11: =FertiSel!J29 -> Vermicompost | D11: =SoilData!L5/250*FertRiq!L3 -> 1.44 | F11: Ton | G11: =D11*1000*FertiSel!L29 -> 10080
C13: =FertiSel!J30 -> Complex 12:32:16 | D13: =FertiSel!M10/250*FertRiq!L3 -> 171.8606783 | F13: Kg | G13: =D13*FertiSel!L30 -> 3952.7956
C15: =FertiSel!J31 -> Urea | D15: =FertiSel!L11/250*FertRiq!L3 -> 59.51460567 | F15: Kg | G15: =D15*FertiSel!L31 -> 338.0429602
C17: =FertiSel!J32 -> Murate of Potassium | D17: =FertiSel!N14/250*FertRiq!L3 -> 0 | F17: Kg | G17: =D17*FertiSel!L32 -> 0
C19: =FertiSel!J33 -> Zinc (Chelated) | D19: =FertiSel!O17/250*FertRiq!L3 -> 26.25 | F19: Kg | G19: =D19*FertiSel!L33 -> 13125
C21: =FertiSel!J34 -> Solubore | D21: =FertiSel!P21/250*FertRiq!L3 -> 4.973684211 | F21: Kg | G21: =D21*FertiSel!L34 -> 497.3684211
C23: =FertiSel!J35 -> Ammonium Sulphate | D23: =FertiSel!Q24/250*FertRiq!L3 -> 0 | F23: Kg | G23: =D23*FertiSel!L35 -> 0
C25: Lime | D25: =FertiSel!R5 -> 400 | F25: kg | G25: =D25*FertiSel!L36 -> 2000
C27: Total cost of fertilizer | F27: =SUM(G9:G25) -> 37193.20698
C30: Urea Fertilizer Schedule | F30: Quantity, Kg
C31: Before transplanting or at time of last ploughing | F31: =K7 -> 0 | G31: Kg
C32: At time of sowing/transplanting | F32: =L7 -> 29.75730283 | G32: Kg
C33: 25- 30 days after sowing | F33: =M7 -> 14.87865142 | G33: Kg
C34: 40-50 days days after sowing | F34: =N7 -> 14.87865142 | G34: Kg
O52: Before transplanting or at time of last ploughing
O53: At time of sowing/transplanting
O54: 25- 30 days after sowing
O55: 40-50 days days after sowing

Sheet FertRiqFruit
C2: Fertilizer Recommendation Report
O3: Area per plant | P3: =FruitCrop!S3 -> 64 | Q3: m2 | R3: plot area | S3: =FruitCrop!F12/250*10000 -> 4800 | T3: m2 | U3: No of plants | V3: =S3/P3 -> 75
C5: Crop: | D5: =FruitCrop!J6 -> Ber (8 x 8m) | F5: Age: | G5: =FruitCrop!R3 -> 4 year | I5: Area: | J5: =FruitCrop!F12/250 -> 0.48 | K5: ha | O5: Cost from Ferti Sel, Rs/Kg | Q5: Qtty/plant
C7: Fertilizer | H7: Quantity per pit | I7: Unit | J7: Total quantity | K7: Unit | L7: Cost Rs | O7: =FertiSel!AB28 -> 3 | Q7: =FruitCrop!T3 -> 25 | R7: FYM (kg) | S7: =$V$3*Q7 -> 1875
C8: FYM/Compost | H8: =Q7 -> 25 | I8: kg | J8: =FruitCrop!T3*(FruitCrop!F12/250)*10000/FruitCrop!S3/1000 -> 1.875 | K8: ton | L8: =J8*O7*1000 -> 5625 | O8: =FertiSel!AB29 -> 20 | Q8: =FruitCrop!U3 -> 1.5 | R8: Neem/Karanj cake (kg) | S8: 112.5
C9: Neem/Karanj cake | H9: 1.5 | I9: kg | J9: =FruitCrop!U3*(FruitCrop!F12/250)*10000/FruitCrop!S3 -> 112.5 | K9: kg | L9: =J9*O8 -> 2250 | O9: =FertiSel!AB30 -> 25 | Q9: =FruitCrop!V3 -> 0 | R9: Bone meal (kg) | S9: 0
C10: Bone meal | H10: 0 | I10: kg | J10: =FruitCrop!V3*(FruitCrop!F12/250)*10000/FruitCrop!S3 -> 0 | K10: kg | L10: 0 | O10: =FertiSel!AB27 -> 5 | Q10: =FruitCrop!W3 -> 5 | R10: Lime (kg) | S10: 375
C11: Lime | H11: 5 | I11: kg | J11: =FruitCrop!W3*(FruitCrop!F12/250)*10000/FruitCrop!S3 -> 375 | K11: kg | L11: 1875 | O11: =FertiSel!AB12 -> 5.68 | Q11: =FruitCrop!X3 -> 870 | R11: Urea (g) | S11: 65250
C12: Urea- 46:0:0 | H12: 870 | I12: g | J12: =FruitCrop!X3/1000*(FruitCrop!F12/250)*10000/FruitCrop!S3 -> 65.25 | K12: kg | L12: 370.62 | O12: =FertiSel!AB6 -> 22 | Q12: =FruitCrop!Y3 -> 590 | R12: DAP (g) | S12: 44250
C13: Diammonium Phosphate - 18:46:0 | H13: 590 | I13: g | J13: =FruitCrop!Y3/1000*(FruitCrop!F12/250)*10000/FruitCrop!S3 -> 44.25 | K13: kg | L13: 973.5 | O13: =FertiSel!AB14 -> 11 | Q13: =FruitCrop!Z3 -> 200 | R13: MOP (g) | S13: 15000
C14: Murate of Potassium-0:0:60 | H14: 200 | I14: g | J14: =FruitCrop!Z3/1000*(FruitCrop!F12/250)*10000/FruitCrop!S3 -> 15 | K14: kg | L14: 165 | O14: =FertiSel!AB18 -> 45 | Q14: =FruitCrop!AA3 -> 30 | R14: Zinc sulphate (g) | S14: 2250
C15: Zinc Sulphate - 21 % | H15: 30 | I15: g | J15: =FruitCrop!AA3/1000*(FruitCrop!F12/250)*10000/FruitCrop!S3 -> 2.25 | K15: kg | L15: 101.25 | O15: =FertiSel!AB21 -> 40 | Q15: =FruitCrop!AB3 -> 30 | R15: Borax (g) | S15: 2250
C16: Borax-10.5 % | H16: 30 | I16: g | J16: =FruitCrop!AB3/1000*(FruitCrop!F12/250)*10000/FruitCrop!S3 -> 2.25 | K16: kg | L16: 90
Q17: .
C18: Total cost of fertilizers, Rs. | J18: =SUM(L8:L17) -> 11450.37
D21: Fertilizer application guidelines
C22: Apply full dose of FYM, ½ dose of urea, DAP, MOP, zinc sulphate, borax in the month of June-July at a distance of 100 cm from trunk around the tree in a trench of 15 cm depth. Another ½ dose of urea in November-December.
D40: 1

Sheet Sheet1
L1: Before transplanting or at time of last ploughing | M1: At time of sowing/transplanting | N1: 25- 30 days after sowing | O1: 40-50 days days after sowing
D2: Sl. No. | E2: Crop | F2: FYM t/ha | G2: Vermi Compost t/ha | H2: N | I2: P | J2: K | K2: S
C3: Arhar | D3: 1 | E3: Arhar | F3: 3 | G3: 2 | H3: 25 | I3: 50 | J3: 25 | K3: 0 | L3: 0 | M3: 100 | N3: 0 | O3: 0
C4: Black gram | D4: 2 | E4: Black gram | F4: 3 | G4: 2 | H4: 25 | I4: 50 | J4: 25 | K4: 0 | L4: 0 | M4: 100 | N4: 0 | O4: 0
C5: Chick pea | D5: 3 | E5: Chick pea | F5: 3 | G5: 2 | H5: 25 | I5: 50 | J5: 25 | K5: 0 | L5: 0 | M5: 100 | N5: 0 | O5: 0
C6: Cow pea | D6: 4 | E6: Cow pea | F6: 3 | G6: 2 | H6: 20 | I6: 40 | J6: 20 | K6: 0 | L6: 50 | M6: 0 | N6: 50 | O6: 0
C7: Field pea | D7: 5 | E7: Field pea | F7: 3 | G7: 2 | H7: 25 | I7: 50 | J7: 25 | K7: 0 | L7: 50 | M7: 0 | N7: 50 | O7: 0
C8: Green gram | D8: 6 | E8: Green gram | F8: 3 | G8: 2 | H8: 20 | I8: 50 | J8: 25 | K8: 0 | L8: 0 | M8: 100 | N8: 0 | O8: 0
C9: Lentil | D9: 7 | E9: Lentil | F9: 3 | G9: 2 | H9: 25 | I9: 50 | J9: 25 | K9: 0 | L9: 0 | M9: 100 | N9: 0 | O9: 0
C10: Maize | D10: 8 | E10: Maize | F10: 5 | G10: 3 | H10: 120 | I10: 60 | J10: 40 | K10: 0 | L10: 0 | M10: 50 | N10: 50 | O10: 0
C11: Millet | D11: 9 | E11: Millet | F11: 5 | G11: 3 | H11: 40 | I11: 30 | J11: 20 | K11: 0 | L11: 0 | M11: 50 | N11: 50 | O11: 0
C12: Rice bean | D12: 10 | E12: Rice bean | F12: 3 | G12: 3 | H12: 20 | I12: 40 | J12: 20 | K12: 0 | L12: 0 | M12: 100 | N12: 0 | O12: 0
C13: Rice-Lowland | D13: 11 | E13: Rice-Lowland | F13: 5 | G13: 3 | H13: 120 | I13: 60 | J13: 40 | K13: 0 | L13: 0 | M13: 50 | N13: 25 | O13: 25
C14: Rice-Midland | D14: 12 | E14: Rice-Midland | F14: 5 | G14: 3 | H14: 80 | I14: 40 | J14: 20 | K14: 0 | L14: 0 | M14: 50 | N14: 25 | O14: 25
C15: Rice-Upland | D15: 13 | E15: Rice-Upland | F15: 5 | G15: 3 | H15: 40 | I15: 20 | J15: 20 | K15: 0 | L15: 0 | M15: 50 | N15: 25 | O15: 25
C16: Wheat-Irrigated | D16: 14 | E16: Wheat-Irrigated | F16: 5 | G16: 3 | H16: 120 | I16: 60 | J16: 40 | K16: 0 | L16: 0 | M16: 50 | N16: 25 | O16: 25
C17: Wheat-unirrigated | D17: 15 | E17: Wheat-unirrigated | F17: 5 | G17: 3 | H17: 60 | I17: 30 | J17: 20 | K17: 0 | L17: 0 | M17: 50 | N17: 50 | O17: 0
C21: Cabbage | D21: 19. | E21: Cabbage | F21: 20 | G21: 5 | H21: 200 | I21: 35 | J21: 50 | K21: 0 | L21: 0 | M21: 50 | N21: 25 | O21: 25
C22: Cauliflower | D22: 20. | E22: Cauliflower | F22: 20 | G22: 5 | H22: 150 | I22: 26 | J22: 50 | K22: 0 | L22: 0 | M22: 50 | N22: 25 | O22: 25
C23: Brinjal | D23: 21. | E23: Brinjal | F23: 20 | G23: 5 | H23: 120 | I23: 26 | J23: 50 | K23: 0 | L23: 33.3 | M23: 0 | N23: 33.3 | O23: 33.3
C24: Chilli | D24: 22. | E24: Chilli | F24: 20 | G24: 5 | H24: 60 | I24: 22 | J24: 42 | K24: 0 | L24: 33.3 | M24: 0 | N24: 33.3 | O24: 33.3
C25: Capsicum | D25: 23. | E25: Capsicum | F25: 20 | G25: 5 | H25: 60 | I25: 44 | J25: 42 | K25: 0 | L25: 33.3 | M25: 0 | N25: 33.3 | O25: 33.3
C26: Tomato | D26: 24. | E26: Tomato | F26: 20 | G26: 5 | H26: 120 | I26: 26 | J26: 50 | K26: 0 | L26: 33.3 | M26: 0 | N26: 33.3 | O26: 33.3
C27: Okra | D27: 25. | E27: Okra | F27: 20 | G27: 5 | H27: 120 | I27: 35 | J27: 50 | K27: 0 | L27: 0 | M27: 50 | N27: 50 | O27: 0
C28: French bean | D28: 26. | E28: French bean | F28: 20 | G28: 5 | H28: 60 | I28: 22 | J28: 42 | K28: 0 | L28: 50 | M28: 0 | N28: 50 | O28: 0
C29: Carrot | D29: 27. | E29: Carrot | F29: 20 | G29: 5 | H29: 60 | I29: 22 | J29: 62 | K29: 0 | L29: 0 | M29: 50 | N29: 0 | O29: 50
C30: Radish | D30: 28. | E30: Radish | F30: 20 | G30: 5 | H30: 80 | I30: 26 | J30: 50 | K30: 0 | L30: 0 | M30: 50 | N30: 50 | O30: 0
C31: Cucumber | D31: 29. | E31: Cucumber | F31: 20 | G31: 5 | H31: 50 | I31: 17 | J31: 33 | K31: 0 | L31: 0 | M31: 50 | N31: 50 | O31: 0
C32: Ridgegourd | D32: 30. | E32: Ridgegourd | F32: 20 | G32: 5 | H32: 50 | I32: 26 | J32: 42 | K32: 0 | L32: 50 | M32: 0 | N32: 50 | O32: 0
C33: Pointed gourd | D33: 31. | E33: Pointed gourd | F33: 20 | G33: 5 | H33: 120 | I33: 26 | J33: 42 | K33: 0 | L33: 33.33 | M33: 0 | N33: 33.33 | O33: 33.33
C34: Bottle gourd | D34: 32. | E34: Bottle gourd | F34: 20 | G34: 5 | H34: 50 | I34: 26 | J34: 42 | K34: 0 | L34: 0 | M34: 50 | N34: 50 | O34: 0
C35: Bitter Gourd | D35: 33. | E35: Bitter Gourd | F35: 20 | G35: 5 | H35: 50 | I35: 26 | J35: 42 | K35: 0 | L35: 0 | M35: 50 | N35: 50 | O35: 0
C36: Potato | D36: 34. | E36: Potato | F36: 20 | G36: 5 | H36: 125 | I36: 39 | J36: 75 | K36: 0 | L36: 0 | M36: 50 | N36: 50 | O36: 0
C37: Onion | D37: 35. | E37: Onion | F37: 20 | G37: 5 | H37: 80 | I37: 26 | J37: 66 | K37: 0 | L37: 0 | M37: 50 | N37: 50 | O37: 0
D38: 36. | E38: Soyabean | F38: 3 | G38: 2 | H38: 25 | I38: 50 | J38: 20 | K38: 40 | L38: 0 | M38: 100 | N38: 0 | O38: 0
D39: 37. | E39: Groundnuts | F39: 3 | G39: 2 | H39: 25 | I39: 50 | J39: 20 | K39: 40 | L39: 0 | M39: 100 | N39: 0 | O39: 0
D40: 38. | E40: Til | F40: 3 | G40: 2 | H40: 40 | I40: 20 | J40: 20 | K40: 0 | L40: 0 | M40: 50 | N40: 50 | O40: 0
D41: 39. | E41: Niger (surguja) | F41: 3 | G41: 2 | H41: 20 | I41: 20 | J41: 20 | K41: 0 | L41: 0 | M41: 100 | N41: 0 | O41: 0
D42: 40. | E42: Sunflower | F42: 3 | G42: 2 | H42: 40 | I42: 50 | J42: 25 | K42: 25 | L42: 0 | M42: 100 | N42: 0 | O42: 0
C46: Linseed irrigated | E46: Linseed irrigated | F46: 3 | G46: 2 | H46: 50 | I46: 30 | J46: 20 | K46: 20 | L46: 0 | M46: 50 | N46: 50 | O46: 0
C47: Linseed unirrigated | E47: Linseed unirrigated | F47: 3 | G47: 2 | H47: 30 | I47: 20 | J47: 20 | K47: 20 | L47: 0 | M47: 50 | N47: 50 | O47: 0
C48: Mustard | E48: Mustard | F48: 3 | G48: 3 | H48: 50 | I48: 25 | J48: 25 | K48: 20 | L48: 0 | M48: 50 | N48: 50 | O48: 0
C49: Soyabean | E49: Soyabean | F49: 3 | G49: 2 | H49: 25 | I49: 50 | J49: 20 | K49: 40 | L49: 0 | M49: 100 | N49: 0 | O49: 0
C50: Groundnuts | E50: Groundnuts | F50: 3 | G50: 2 | H50: 25 | I50: 50 | J50: 20 | K50: 40 | L50: 0 | M50: 100 | N50: 0 | O50: 0
C51: Til | E51: Til | F51: 3 | G51: 2 | H51: 40 | I51: 20 | J51: 20 | K51: 0 | L51: 0 | M51: 50 | N51: 50 | O51: 0
C52: Niger (surguja) | E52: Niger (surguja) | F52: 3 | G52: 2 | H52: 20 | I52: 20 | J52: 20 | K52: 0 | L52: 0 | M52: 100 | N52: 0 | O52: 0
C53: Sunflower | E53: Sunflower | F53: 3 | G53: 2 | H53: 40 | I53: 50 | J53: 25 | K53: 25 | L53: 0 | M53: 100 | N53: 0 | O53: 0
